Dept Family,Entity,Cleared Date,Expense Type,Expense Area,Supplier,Transaction Number,Amount
NHS,UHCW NHS TRUST,01/03/2022,RENTS & RATES,ESTATES,COVENTRY CITY COUNCIL,1455915,"238,507.00"
NHS,UHCW NHS TRUST,01/03/2022,RENTS & RATES,RUGBY ESTATES SERVICES,RUGBY BOROUGH COUNCIL,1455916,"26,880.00"
NHS,UHCW NHS TRUST,03/03/2022,OTHER ESTABLISHMENT COSTS,RESEARCH ACCOUNT,BRUNEL UNIVERSITY LONDON,2407445,"9,000.00"
NHS,UHCW NHS TRUST,03/03/2022,OTHER ESTABLISHMENT COSTS,RESEARCH ACCOUNT,BRUNEL UNIVERSITY LONDON,2407445,"9,000.00"
NHS,UHCW NHS TRUST,03/03/2022,OTHER ESTABLISHMENT COSTS,RESEARCH ACCOUNT,BRUNEL UNIVERSITY LONDON,2407445,"9,000.00"
NHS,UHCW NHS TRUST,03/03/2022,OTHER TRANS / MOVEABLE PLANT,PATHOLOGY MANAGEMENT,QE FACILITIES LIMITED ,2407451,"124,330.92"
NHS,UHCW NHS TRUST,03/03/2022,SERVICES REC FROM THIRD PARTY,UROLOGY,XYLA ELECTIVE CARE,2407807,"72,423.00"
NHS,UHCW NHS TRUST,03/03/2022,MEDICAL & SURGICAL EQUIP PURCH,CLIN PHYSICS & BIOMEDICAL ENG,TALLEY GROUP,2863803,"29,840.40"
NHS,UHCW NHS TRUST,03/03/2022,CAPITAL EXPENDITURE IN YEAR,CAPITAL,CERNER LIMITED,2889806,"839,855.00"
NHS,UHCW NHS TRUST,03/03/2022,SERVICES REC FROM NHS BODIES,BLOOD SCIENCES,UNIVERSITY HOSPITALS BIRMINGHAM NHS FT,2913180,"48,509.83"
NHS,UHCW NHS TRUST,03/03/2022,SERVICES REC FROM NHS BODIES,BLOOD SCIENCES,UNIVERSITY HOSPITALS BIRMINGHAM NHS FT,2913180,"7,840.88"
NHS,UHCW NHS TRUST,03/03/2022,CAPITAL EXPENDITURE IN YEAR,CAPITAL,CERNER LIMITED,2959268,"1,033,331.00"
NHS,UHCW NHS TRUST,03/03/2022,CAPITAL EXPENDITURE IN YEAR,CAPITAL,CHANNEL 3 CONSULTING LIMITED,2959270,"3,060.00"
NHS,UHCW NHS TRUST,03/03/2022,CAPITAL EXPENDITURE IN YEAR,CAPITAL,CHANNEL 3 CONSULTING LIMITED,2959270,"12,300.00"
NHS,UHCW NHS TRUST,03/03/2022,CAPITAL EXPENDITURE IN YEAR,CAPITAL,CHANNEL 3 CONSULTING LIMITED,2959270,"34,200.00"
NHS,UHCW NHS TRUST,03/03/2022,CAPITAL EXPENDITURE IN YEAR,CAPITAL,CHANNEL 3 CONSULTING LIMITED,2959270,"28,800.00"
NHS,UHCW NHS TRUST,03/03/2022,CAPITAL EXPENDITURE IN YEAR,CAPITAL,CHANNEL 3 CONSULTING LIMITED,2959270,"11,700.00"
NHS,UHCW NHS TRUST,03/03/2022,CAPITAL EXPENDITURE IN YEAR,CAPITAL,CHANNEL 3 CONSULTING LIMITED,2959365,"3,060.00"
NHS,UHCW NHS TRUST,03/03/2022,CAPITAL EXPENDITURE IN YEAR,CAPITAL,CHANNEL 3 CONSULTING LIMITED,2959365,"12,300.00"
NHS,UHCW NHS TRUST,03/03/2022,CAPITAL EXPENDITURE IN YEAR,CAPITAL,CHANNEL 3 CONSULTING LIMITED,2959365,"34,200.00"
NHS,UHCW NHS TRUST,03/03/2022,CAPITAL EXPENDITURE IN YEAR,CAPITAL,CHANNEL 3 CONSULTING LIMITED,2959365,"28,800.00"
NHS,UHCW NHS TRUST,03/03/2022,CAPITAL EXPENDITURE IN YEAR,CAPITAL,CHANNEL 3 CONSULTING LIMITED,2959365,"11,700.00"
NHS,UHCW NHS TRUST,03/03/2022,LABORATORY EQUIP - PURCHASES,,PERKIN ELMER LAS (UK) LTD,3046898,"67,080.00"
NHS,UHCW NHS TRUST,03/03/2022,LABORATORY EQUIP - PURCHASES,,PERKIN ELMER LAS (UK) LTD,3046898,9.37
NHS,UHCW NHS TRUST,03/03/2022,LABORATORY EQUIP - PURCHASES,,MAST DIAGNOSTICS LTD,3051320,"107,520.00"
NHS,UHCW NHS TRUST,03/03/2022,LABORATORY EQUIP - PURCHASES,,MAST DIAGNOSTICS LTD,3051320,31.07
NHS,UHCW NHS TRUST,03/03/2022,OTHER TRANS / MOVEABLE PLANT,PATHOLOGY MANAGEMENT,QE FACILITIES LIMITED ,3055993,"124,330.92"
NHS,UHCW NHS TRUST,03/03/2022,LABORATORY EQUIP - PURCHASES,,CEPHEID UK LTD,3059286,"11,610.72"
NHS,UHCW NHS TRUST,03/03/2022,LABORATORY EQUIP - PURCHASES,,CEPHEID UK LTD,3059286,"21,692.16"
NHS,UHCW NHS TRUST,03/03/2022,MEDICAL & SURGICAL EQUIP PURCH,CARDIOLOGY,BOSTON SCIENTIFIC LTD,3059313,"27,528.00"
NHS,UHCW NHS TRUST,03/03/2022,MEDICAL & SURGICAL EQUIP PURCH,CARDIOLOGY,BOSTON SCIENTIFIC LTD,3059313,"27,528.00"
NHS,UHCW NHS TRUST,03/03/2022,MEDICAL & SURGICAL EQUIP PURCH,CARDIOLOGY,BOSTON SCIENTIFIC LTD,3059313,"10,464.00"
NHS,UHCW NHS TRUST,03/03/2022,MEDICAL & SURGICAL EQUIP PURCH,CARDIOLOGY,BOSTON SCIENTIFIC LTD,3059313,"4,176.00"
NHS,UHCW NHS TRUST,03/03/2022,LABORATORY EQUIP - PURCHASES,,MAST DIAGNOSTICS LTD,3059988,"80,640.00"
NHS,UHCW NHS TRUST,03/03/2022,LABORATORY EQUIP - PURCHASES,,CEPHEID UK LTD,3060364,"11,610.72"
NHS,UHCW NHS TRUST,03/03/2022,LABORATORY EQUIP - PURCHASES,,CEPHEID UK LTD,3060364,"21,692.16"
NHS,UHCW NHS TRUST,03/03/2022,LABORATORY EQUIP - PURCHASES,,MAST DIAGNOSTICS LTD,3061887,"80,640.00"
NHS,UHCW NHS TRUST,03/03/2022,LABORATORY EQUIP - PURCHASES,,MAST DIAGNOSTICS LTD,3061887,32
NHS,UHCW NHS TRUST,03/03/2022,LABORATORY EQUIP - PURCHASES,,MAST DIAGNOSTICS LTD,3061888,"14,820.00"
NHS,UHCW NHS TRUST,03/03/2022,LABORATORY EQUIP - PURCHASES,,MAST DIAGNOSTICS LTD,3061888,"4,200.00"
NHS,UHCW NHS TRUST,03/03/2022,LABORATORY EQUIP - PURCHASES,,MAST DIAGNOSTICS LTD,3061888,"5,808.00"
NHS,UHCW NHS TRUST,03/03/2022,LABORATORY EQUIP - PURCHASES,,MAST DIAGNOSTICS LTD,3061888,792
NHS,UHCW NHS TRUST,03/03/2022,LABORATORY EQUIP - PURCHASES,,MAST DIAGNOSTICS LTD,3061888,684
NHS,UHCW NHS TRUST,03/03/2022,LABORATORY EQUIP - PURCHASES,,MAST DIAGNOSTICS LTD,3061888,30
NHS,UHCW NHS TRUST,03/03/2022,LABORATORY EQUIP - PURCHASES,,CEPHEID UK LTD,3062185,"18,999.36"
NHS,UHCW NHS TRUST,03/03/2022,LABORATORY EQUIP - PURCHASES,,CEPHEID UK LTD,3062185,"45,708.48"
NHS,UHCW NHS TRUST,03/03/2022,RENTS & RATES,RADIOLOGY,INHEALTH LTD,3063140,"34,775.00"
NHS,UHCW NHS TRUST,03/03/2022,INVENTORIES,BALANCE SHEET,ALLOCATE SOFTWARE LIMITED,3082500,"67,800.00"
NHS,UHCW NHS TRUST,03/03/2022,INVENTORIES,BALANCE SHEET,ALLOCATE SOFTWARE LIMITED,3082502,"43,612.13"
NHS,UHCW NHS TRUST,03/03/2022,INVENTORIES,BALANCE SHEET,ALLOCATE SOFTWARE LIMITED,3082503,"37,800.00"
NHS,UHCW NHS TRUST,03/03/2022,INVENTORIES,BALANCE SHEET,CSL BEHRING UK LTD,3082531,"76,200.00"
NHS,UHCW NHS TRUST,10/03/2022,MEDICAL & SURGICAL EQUIP PURCH,RADIOLOGY,TRISTEL COMPANY LTD,2407634,"43,290.00"
NHS,UHCW NHS TRUST,10/03/2022,FURNITURE OFFICE & COMP EQUIP,INFORMATION AND COMMS TECH,VODAFONE CORPORATE LTD,2407651,"29,937.60"
NHS,UHCW NHS TRUST,10/03/2022,FURNITURE OFFICE & COMP EQUIP,INFORMATION AND COMMS TECH,VODAFONE CORPORATE LTD,2407651,273.6
NHS,UHCW NHS TRUST,10/03/2022,FURNITURE OFFICE & COMP EQUIP,INFORMATION AND COMMS TECH,VODAFONE CORPORATE LTD,2407651,"1,996.80"
NHS,UHCW NHS TRUST,10/03/2022,X-RAY EQUIPMENT - MAINTENANCE,RADIOLOGY,NHS SUPPLYCHAIN (MAINTENANCE),2547528,"45,481.00"
NHS,UHCW NHS TRUST,10/03/2022,X-RAY EQUIPMENT - MAINTENANCE,RADIOLOGY,NHS SUPPLYCHAIN (MAINTENANCE),2547529,"30,167.97"
NHS,UHCW NHS TRUST,10/03/2022,APPLIANCES & IMPLANTS,ORTHOPAEDICS,OPCARE LIMITED,2815420,"63,570.16"
NHS,UHCW NHS TRUST,10/03/2022,APPLIANCES & IMPLANTS,ORTHOPAEDICS,OPCARE LIMITED,2815420,"1,784.23"
NHS,UHCW NHS TRUST,10/03/2022,LABORATORY EQUIP - PURCHASES,,PERKIN ELMER LAS (UK) LTD,2815421,"460,800.00"
NHS,UHCW NHS TRUST,10/03/2022,CAPITAL EXPENDITURE IN YEAR,CAPITAL,COVENTRY & RUGBY HOSPITAL COMPANY PLC,2815435,"544,286.56"
NHS,UHCW NHS TRUST,10/03/2022,OTHER ESTABLISHMENT COSTS,ESTATES,COVENTRY & RUGBY HOSPITAL COMPANY PLC,2815451,"184,058.50"
NHS,UHCW NHS TRUST,10/03/2022,CAPITAL EXPENDITURE IN YEAR,CAPITAL,PENLON LTD,2815457,"15,710.40"
NHS,UHCW NHS TRUST,10/03/2022,CAPITAL EXPENDITURE IN YEAR,CAPITAL,PENLON LTD,2815457,"8,880.00"
NHS,UHCW NHS TRUST,10/03/2022,CAPITAL EXPENDITURE IN YEAR,CAPITAL,PENLON LTD,2815457,72
NHS,UHCW NHS TRUST,10/03/2022,CAPITAL EXPENDITURE IN YEAR,CAPITAL,PENLON LTD,2815457,24
NHS,UHCW NHS TRUST,10/03/2022,CAPITAL EXPENDITURE IN YEAR,CAPITAL,PENLON LTD,2815457,156
NHS,UHCW NHS TRUST,10/03/2022,CAPITAL EXPENDITURE IN YEAR,CAPITAL,PENLON LTD,2815457,564
NHS,UHCW NHS TRUST,10/03/2022,CAPITAL EXPENDITURE IN YEAR,CAPITAL,PENLON LTD,2815457,"2,250.00"
NHS,UHCW NHS TRUST,10/03/2022,PRINTING & STATIONERY,CARDIOLOGY,ATRIUM HEALTH,2815461,"100,391.09"
NHS,UHCW NHS TRUST,10/03/2022,CONSULTANTS,RENAL TRANSPLANT,UNIVERSITY OF OXFORD,2815467,"26,031.86"
NHS,UHCW NHS TRUST,10/03/2022,CONSULTANTS,RESEARCH & DEVELOPMENT,UNIVERSITY OF OXFORD,2815467,"15,097.62"
NHS,UHCW NHS TRUST,10/03/2022,CAPITAL EXPENDITURE IN YEAR,CAPITAL,CERNER LIMITED,2815471,"279,043.20"
NHS,UHCW NHS TRUST,10/03/2022,FURNITURE OFFICE & COMP EQUIP,INFORMATION AND COMMS TECH,LEARNING CLINIC,2863781,"30,509.45"
NHS,UHCW NHS TRUST,10/03/2022,SERVICES REC FROM THIRD PARTY,RADIOLOGY,MEDICARE UK SERVICES LTD,2863820,"45,000.00"
NHS,UHCW NHS TRUST,10/03/2022,NON-NHS TRADE CREDITORS < 1 YR,BALANCE SHEET,VITAL ENERGI SOLUTIONS (PAY AVIVA),2863875,"97,947.60"
NHS,UHCW NHS TRUST,10/03/2022,CAPITAL EXPENDITURE IN YEAR,CAPITAL,SIGMACON LTD,2863880,"191,940.00"
NHS,UHCW NHS TRUST,10/03/2022,SERVICES REC FROM THIRD PARTY,RESPIRATORY,INHEALTH LTD,2913662,"185,300.00"
NHS,UHCW NHS TRUST,10/03/2022,REMOVAL COSTS,NURSING,ID MEDICAL GROUP LTD,2913899,"175,000.00"
NHS,UHCW NHS TRUST,10/03/2022,OTHER ESTABLISHMENT COSTS,NURSING,ID MEDICAL GROUP LTD,2913900,"225,000.00"
NHS,UHCW NHS TRUST,10/03/2022,SERVICES REC FROM THIRD PARTY,RESPIRATORY,INHEALTH LTD,2913936,"185,300.00"
NHS,UHCW NHS TRUST,10/03/2022,POSTAGE,RUGBY MEDICAL SERVICES,ROYAL MAIL (MIDLANDS),2980133,"26,152.64"
NHS,UHCW NHS TRUST,10/03/2022,MEDICAL & SURGICAL EQUIP MAINT,THEATRES,MEDTRONIC LTD,3047645,"39,600.00"
NHS,UHCW NHS TRUST,10/03/2022,CAPITAL EXPENDITURE IN YEAR,CAPITAL,K2 MEDICAL SYSTEMS,3048129,"72,000.00"
NHS,UHCW NHS TRUST,10/03/2022,MEDICAL & SURGICAL EQUIP PURCH,THEATRES,INTUITIVE SURGICAL LTD,3057360,"48,000.00"
NHS,UHCW NHS TRUST,10/03/2022,LABORATORY EQUIP - PURCHASES,,MAST DIAGNOSTICS LTD,3057853,"80,672.00"
NHS,UHCW NHS TRUST,10/03/2022,CAPITAL EXPENDITURE IN YEAR,CAPITAL,PHOENIX SOFTWARE LTD,3060165,"60,000.00"
NHS,UHCW NHS TRUST,10/03/2022,CAPITAL EXPENDITURE IN YEAR,CAPITAL,PORTAKABIN LTD,3062221,"84,000.00"
NHS,UHCW NHS TRUST,10/03/2022,CAPITAL EXPENDITURE IN YEAR,CAPITAL,INSIGHT DIRECT (UK) LTD,3062624,16.79
NHS,UHCW NHS TRUST,10/03/2022,CAPITAL EXPENDITURE IN YEAR,CAPITAL,INSIGHT DIRECT (UK) LTD,3062624,"141,002.41"
NHS,UHCW NHS TRUST,10/03/2022,LABORATORY EQUIP - PURCHASES,MICROBIOLOGY,BIOMERIEUX,3063479,"1,418.33"
NHS,UHCW NHS TRUST,10/03/2022,LABORATORY EQUIP - PURCHASES,MICROBIOLOGY,BIOMERIEUX,3063479,"9,455.52"
NHS,UHCW NHS TRUST,10/03/2022,LABORATORY EQUIP - PURCHASES,MICROBIOLOGY,BIOMERIEUX,3063479,"9,455.52"
NHS,UHCW NHS TRUST,10/03/2022,LABORATORY EQUIP - PURCHASES,MICROBIOLOGY,BIOMERIEUX,3063479,"9,455.52"
NHS,UHCW NHS TRUST,10/03/2022,LABORATORY EQUIP - PURCHASES,MICROBIOLOGY,BIOMERIEUX,3063479,"9,455.52"
NHS,UHCW NHS TRUST,10/03/2022,LABORATORY EQUIP - PURCHASES,,CEPHEID UK LTD,3063604,"18,999.36"
NHS,UHCW NHS TRUST,10/03/2022,LABORATORY EQUIP - PURCHASES,,CEPHEID UK LTD,3063604,"45,708.48"
NHS,UHCW NHS TRUST,10/03/2022,MEDICAL & SURGICAL EQUIP PURCH,THEATRES,INTUITIVE SURGICAL LTD,3063803,"48,000.00"
NHS,UHCW NHS TRUST,10/03/2022,SERVICES REC FROM THIRD PARTY,EMERGENCY MEDICINE,HCRG CARE COVENTRY,3064010,"169,040.27"
NHS,UHCW NHS TRUST,10/03/2022,INVENTORIES,BALANCE SHEET,NOVARTIS PHARMACEUTICALS LTD,3082641,"39,236.76"
NHS,UHCW NHS TRUST,10/03/2022,INVENTORIES,BALANCE SHEET,ROCHE PRODUCTS LTD,3082665,"178,919.04"
NHS,UHCW NHS TRUST,10/03/2022,INVENTORIES,BALANCE SHEET,ROCHE PRODUCTS LTD,3082668,"38,832.00"
NHS,UHCW NHS TRUST,10/03/2022,INVENTORIES,BALANCE SHEET,ALLIANCE HEALTHCARE,3082763,"27,615.12"
NHS,UHCW NHS TRUST,10/03/2022,INVENTORIES,BALANCE SHEET,ALLIANCE HEALTHCARE,3083007,"27,615.12"
NHS,UHCW NHS TRUST,14/03/2022,BLOOD PRODUCTS,THEATRES,NHS BLOOD AND TRANSPLANT,1456024,"219,030.16"
NHS,UHCW NHS TRUST,17/03/2022,BLOOD PRODUCTS,CLINICAL HAEMATOLOGY,HEALTHCARE AT HOME LTD,2407433,"84,634.74"
NHS,UHCW NHS TRUST,17/03/2022,DRUGS,RENAL DIALYSIS,BAXTER HEALTHCARE LIMITED,2407697,"88,402.28"
NHS,UHCW NHS TRUST,17/03/2022,NHS CREDITORS < 1 YR,BALANCE SHEET,NHS SUPPLY CHAIN (10004157),2547759,990.27
NHS,UHCW NHS TRUST,17/03/2022,NHS CREDITORS < 1 YR,BALANCE SHEET,NHS SUPPLY CHAIN (10004157),2547759,"382,215.20"
NHS,UHCW NHS TRUST,17/03/2022,NHS CREDITORS < 1 YR,BALANCE SHEET,NHS SUPPLY CHAIN (10004157),2547823,712.19
NHS,UHCW NHS TRUST,17/03/2022,NHS CREDITORS < 1 YR,BALANCE SHEET,NHS SUPPLY CHAIN (10004157),2547823,56.7
NHS,UHCW NHS TRUST,17/03/2022,NHS CREDITORS < 1 YR,BALANCE SHEET,NHS SUPPLY CHAIN (10004157),2547823,"311,408.85"
NHS,UHCW NHS TRUST,17/03/2022,NHS CREDITORS < 1 YR,BALANCE SHEET,NHS SUPPLY CHAIN (10004157),2547824,"1,249.20"
NHS,UHCW NHS TRUST,17/03/2022,NHS CREDITORS < 1 YR,BALANCE SHEET,NHS SUPPLY CHAIN (10004157),2547824,30.37
NHS,UHCW NHS TRUST,17/03/2022,NHS CREDITORS < 1 YR,BALANCE SHEET,NHS SUPPLY CHAIN (10004157),2547824,"712,178.91"
NHS,UHCW NHS TRUST,17/03/2022,NHS CREDITORS < 1 YR,BALANCE SHEET,NHS SUPPLY CHAIN (10004157),2815550,"284,717.12"
NHS,UHCW NHS TRUST,17/03/2022,NHS CREDITORS < 1 YR,BALANCE SHEET,NHS SUPPLY CHAIN (10004157),2815550,678.53
NHS,UHCW NHS TRUST,17/03/2022,INVENTORIES,BALANCE SHEET,A A H PHARMACEUTICALS LTD,2815551,"550,000.00"
NHS,UHCW NHS TRUST,17/03/2022,BLOOD PRODUCTS,CLINICAL HAEMATOLOGY,HEALTHCARE AT HOME LTD,2862345,"75,391.29"
NHS,UHCW NHS TRUST,17/03/2022,OTHER MEDICAL GRADES,PGME/MADEL,ST HELENS & KNOWSLEY HOSPITALS NHS TRUST,2863640,"285,000.00"
NHS,UHCW NHS TRUST,17/03/2022,NHS CREDITORS < 1 YR,BALANCE SHEET,NHS SUPPLY CHAIN (10004157),2863727,"310,157.13"
NHS,UHCW NHS TRUST,17/03/2022,NHS CREDITORS < 1 YR,BALANCE SHEET,NHS SUPPLY CHAIN (10004157),2863727,760.46
NHS,UHCW NHS TRUST,17/03/2022,BLOOD PRODUCTS,CLINICAL HAEMATOLOGY,HEALTHCARE AT HOME LTD,2888481,"127,995.97"
NHS,UHCW NHS TRUST,17/03/2022,BLOOD PRODUCTS,CLINICAL HAEMATOLOGY,HEALTHCARE AT HOME LTD,2888483,"124,809.20"
NHS,UHCW NHS TRUST,17/03/2022,MEDICAL & SURGICAL EQUIP PURCH,THEATRES,INSPIRATION HEALTHCARE LTD,2913852,"24,000.00"
NHS,UHCW NHS TRUST,17/03/2022,MEDICAL & SURGICAL EQUIP PURCH,THEATRES,INSPIRATION HEALTHCARE LTD,2913852,"9,600.00"
NHS,UHCW NHS TRUST,17/03/2022,MEDICAL & SURGICAL EQUIP PURCH,THEATRES,INSPIRATION HEALTHCARE LTD,2913852,"12,000.00"
NHS,UHCW NHS TRUST,17/03/2022,MEDICAL & SURGICAL EQUIP PURCH,THEATRES,INSPIRATION HEALTHCARE LTD,2913852,180
NHS,UHCW NHS TRUST,17/03/2022,OTHER ESTABLISHMENT COSTS,RESEARCH & DEVELOPMENT,UNIVERSITY OF WARWICK,2914020,"76,893.60"
NHS,UHCW NHS TRUST,17/03/2022,FURNITURE OFFICE & COMP EQUIP,INFORMATION AND COMMS TECH,INSIGHT DIRECT (UK) LTD,2914046,"34,164.00"
NHS,UHCW NHS TRUST,17/03/2022,LABORATORY EQUIP - PURCHASES,MICROBIOLOGY,ABBOTT LABORATORIES LTD,2959460,"22,007.90"
NHS,UHCW NHS TRUST,17/03/2022,LABORATORY EQUIP - PURCHASES,MICROBIOLOGY,ABBOTT LABORATORIES LTD,2959460,972.7
NHS,UHCW NHS TRUST,17/03/2022,LABORATORY EQUIP - PURCHASES,MICROBIOLOGY,ABBOTT LABORATORIES LTD,2959460,"5,843.93"
NHS,UHCW NHS TRUST,17/03/2022,LABORATORY EQUIP - PURCHASES,MICROBIOLOGY,ABBOTT LABORATORIES LTD,2959460,"5,824.48"
NHS,UHCW NHS TRUST,17/03/2022,LABORATORY EQUIP - PURCHASES,MICROBIOLOGY,ABBOTT LABORATORIES LTD,2959460,972.7
NHS,UHCW NHS TRUST,17/03/2022,LABORATORY EQUIP - PURCHASES,RUGBY MEDICAL SERVICES,CHRYSTAL CONSULTING LTD,2959651,"287,222.41"
NHS,UHCW NHS TRUST,17/03/2022,CAPITAL EXPENDITURE IN YEAR,CAPITAL,COVENTRY & RUGBY HOSPITAL COMPANY PLC,2959656,"58,326.53"
NHS,UHCW NHS TRUST,17/03/2022,NHS CREDITORS < 1 YR,BALANCE SHEET,NHS SUPPLY CHAIN (10004157),2980168,876.59
NHS,UHCW NHS TRUST,17/03/2022,NHS CREDITORS < 1 YR,BALANCE SHEET,NHS SUPPLY CHAIN (10004157),2980168,"335,080.96"
NHS,UHCW NHS TRUST,17/03/2022,MEDICAL & SURGICAL EQUIP PURCH,CARDIOLOGY,ABBOTT MEDICAL UK,3036464,"4,320.00"
NHS,UHCW NHS TRUST,17/03/2022,MEDICAL & SURGICAL EQUIP PURCH,CARDIOLOGY,ABBOTT MEDICAL UK,3036464,"6,240.00"
NHS,UHCW NHS TRUST,17/03/2022,MEDICAL & SURGICAL EQUIP PURCH,CARDIOLOGY,ABBOTT MEDICAL UK,3036464,"19,800.00"
NHS,UHCW NHS TRUST,17/03/2022,MEDICAL & SURGICAL EQUIP PURCH,CARDIOLOGY,ABBOTT MEDICAL UK,3036464,"2,340.00"
NHS,UHCW NHS TRUST,17/03/2022,MEDICAL & SURGICAL EQUIP PURCH,CARDIOLOGY,ABBOTT MEDICAL UK,3036464,"2,400.00"
NHS,UHCW NHS TRUST,17/03/2022,LABORATORY EQUIP - PURCHASES,BLOOD SCIENCES,THERMOFISHER DIAGNOSTICS LTD,3048303,0.01
NHS,UHCW NHS TRUST,17/03/2022,LABORATORY EQUIP - PURCHASES,BLOOD SCIENCES,THERMOFISHER DIAGNOSTICS LTD,3048303,0.01
NHS,UHCW NHS TRUST,17/03/2022,LABORATORY EQUIP - PURCHASES,BLOOD SCIENCES,THERMOFISHER DIAGNOSTICS LTD,3048303,0.05
NHS,UHCW NHS TRUST,17/03/2022,LABORATORY EQUIP - PURCHASES,BLOOD SCIENCES,THERMOFISHER DIAGNOSTICS LTD,3048303,0.05
NHS,UHCW NHS TRUST,17/03/2022,LABORATORY EQUIP - PURCHASES,BLOOD SCIENCES,THERMOFISHER DIAGNOSTICS LTD,3048303,0.01
NHS,UHCW NHS TRUST,17/03/2022,LABORATORY EQUIP - PURCHASES,BLOOD SCIENCES,THERMOFISHER DIAGNOSTICS LTD,3048303,0.01
NHS,UHCW NHS TRUST,17/03/2022,LABORATORY EQUIP - PURCHASES,BLOOD SCIENCES,THERMOFISHER DIAGNOSTICS LTD,3048303,0.01
NHS,UHCW NHS TRUST,17/03/2022,LABORATORY EQUIP - PURCHASES,BLOOD SCIENCES,THERMOFISHER DIAGNOSTICS LTD,3048303,"1,290.24"
NHS,UHCW NHS TRUST,17/03/2022,LABORATORY EQUIP - PURCHASES,BLOOD SCIENCES,THERMOFISHER DIAGNOSTICS LTD,3048303,0.01
NHS,UHCW NHS TRUST,17/03/2022,LABORATORY EQUIP - PURCHASES,BLOOD SCIENCES,THERMOFISHER DIAGNOSTICS LTD,3048303,516.1
NHS,UHCW NHS TRUST,17/03/2022,LABORATORY EQUIP - PURCHASES,BLOOD SCIENCES,THERMOFISHER DIAGNOSTICS LTD,3048303,516.1
NHS,UHCW NHS TRUST,17/03/2022,LABORATORY EQUIP - PURCHASES,BLOOD SCIENCES,THERMOFISHER DIAGNOSTICS LTD,3048303,516.1
NHS,UHCW NHS TRUST,17/03/2022,LABORATORY EQUIP - PURCHASES,BLOOD SCIENCES,THERMOFISHER DIAGNOSTICS LTD,3048303,258.05
NHS,UHCW NHS TRUST,17/03/2022,LABORATORY EQUIP - PURCHASES,BLOOD SCIENCES,THERMOFISHER DIAGNOSTICS LTD,3048303,387.07
NHS,UHCW NHS TRUST,17/03/2022,LABORATORY EQUIP - PURCHASES,BLOOD SCIENCES,THERMOFISHER DIAGNOSTICS LTD,3048303,516.1
NHS,UHCW NHS TRUST,17/03/2022,LABORATORY EQUIP - PURCHASES,BLOOD SCIENCES,THERMOFISHER DIAGNOSTICS LTD,3048303,645.12
NHS,UHCW NHS TRUST,17/03/2022,LABORATORY EQUIP - PURCHASES,BLOOD SCIENCES,THERMOFISHER DIAGNOSTICS LTD,3048303,"1,290.24"
NHS,UHCW NHS TRUST,17/03/2022,LABORATORY EQUIP - PURCHASES,BLOOD SCIENCES,THERMOFISHER DIAGNOSTICS LTD,3048303,"1,290.24"
NHS,UHCW NHS TRUST,17/03/2022,LABORATORY EQUIP - PURCHASES,BLOOD SCIENCES,THERMOFISHER DIAGNOSTICS LTD,3048303,"1,032.19"
NHS,UHCW NHS TRUST,17/03/2022,LABORATORY EQUIP - PURCHASES,BLOOD SCIENCES,THERMOFISHER DIAGNOSTICS LTD,3048303,"2,580.48"
NHS,UHCW NHS TRUST,17/03/2022,LABORATORY EQUIP - PURCHASES,BLOOD SCIENCES,THERMOFISHER DIAGNOSTICS LTD,3048303,"15,482.88"
NHS,UHCW NHS TRUST,17/03/2022,LABORATORY EQUIP - PURCHASES,BLOOD SCIENCES,THERMOFISHER DIAGNOSTICS LTD,3048303,"1,290.24"
NHS,UHCW NHS TRUST,17/03/2022,LABORATORY EQUIP - PURCHASES,BLOOD SCIENCES,THERMOFISHER DIAGNOSTICS LTD,3048303,774.14
NHS,UHCW NHS TRUST,17/03/2022,LABORATORY EQUIP - PURCHASES,BLOOD SCIENCES,THERMOFISHER DIAGNOSTICS LTD,3048303,774.14
NHS,UHCW NHS TRUST,17/03/2022,LABORATORY EQUIP - PURCHASES,BLOOD SCIENCES,THERMOFISHER DIAGNOSTICS LTD,3048303,774.14
NHS,UHCW NHS TRUST,17/03/2022,LABORATORY EQUIP - PURCHASES,BLOOD SCIENCES,THERMOFISHER DIAGNOSTICS LTD,3048303,516.1
NHS,UHCW NHS TRUST,17/03/2022,LABORATORY EQUIP - PURCHASES,BLOOD SCIENCES,THERMOFISHER DIAGNOSTICS LTD,3048303,"1,290.24"
NHS,UHCW NHS TRUST,17/03/2022,LABORATORY EQUIP - PURCHASES,BLOOD SCIENCES,THERMOFISHER DIAGNOSTICS LTD,3048303,"2,553.41"
NHS,UHCW NHS TRUST,17/03/2022,LABORATORY EQUIP - PURCHASES,BLOOD SCIENCES,THERMOFISHER DIAGNOSTICS LTD,3048303,"2,089.15"
NHS,UHCW NHS TRUST,17/03/2022,LABORATORY EQUIP - PURCHASES,BLOOD SCIENCES,THERMOFISHER DIAGNOSTICS LTD,3048303,274.8
NHS,UHCW NHS TRUST,17/03/2022,LABORATORY EQUIP - PURCHASES,BLOOD SCIENCES,THERMOFISHER DIAGNOSTICS LTD,3048303,659.52
NHS,UHCW NHS TRUST,17/03/2022,LABORATORY EQUIP - PURCHASES,BLOOD SCIENCES,THERMOFISHER DIAGNOSTICS LTD,3048303,879.36
NHS,UHCW NHS TRUST,17/03/2022,LABORATORY EQUIP - PURCHASES,BLOOD SCIENCES,THERMOFISHER DIAGNOSTICS LTD,3048303,"1,758.72"
NHS,UHCW NHS TRUST,17/03/2022,LABORATORY EQUIP - PURCHASES,BLOOD SCIENCES,THERMOFISHER DIAGNOSTICS LTD,3048303,"1,319.04"
NHS,UHCW NHS TRUST,17/03/2022,LABORATORY EQUIP - PURCHASES,BLOOD SCIENCES,THERMOFISHER DIAGNOSTICS LTD,3048303,219.84
NHS,UHCW NHS TRUST,17/03/2022,LABORATORY EQUIP - PURCHASES,BLOOD SCIENCES,THERMOFISHER DIAGNOSTICS LTD,3048303,219.84
NHS,UHCW NHS TRUST,17/03/2022,LABORATORY EQUIP - PURCHASES,BLOOD SCIENCES,THERMOFISHER DIAGNOSTICS LTD,3048303,"1,758.72"
NHS,UHCW NHS TRUST,17/03/2022,LABORATORY EQUIP - PURCHASES,BLOOD SCIENCES,THERMOFISHER DIAGNOSTICS LTD,3048303,659.52
NHS,UHCW NHS TRUST,17/03/2022,LABORATORY EQUIP - PURCHASES,BLOOD SCIENCES,THERMOFISHER DIAGNOSTICS LTD,3048303,219.84
NHS,UHCW NHS TRUST,17/03/2022,LABORATORY EQUIP - PURCHASES,BLOOD SCIENCES,THERMOFISHER DIAGNOSTICS LTD,3048303,114.31
NHS,UHCW NHS TRUST,17/03/2022,LABORATORY EQUIP - PURCHASES,BLOOD SCIENCES,THERMOFISHER DIAGNOSTICS LTD,3048303,412.2
NHS,UHCW NHS TRUST,17/03/2022,LABORATORY EQUIP - PURCHASES,BLOOD SCIENCES,THERMOFISHER DIAGNOSTICS LTD,3048303,0.02
NHS,UHCW NHS TRUST,17/03/2022,LABORATORY EQUIP - PURCHASES,BLOOD SCIENCES,THERMOFISHER DIAGNOSTICS LTD,3048303,0.01
NHS,UHCW NHS TRUST,17/03/2022,LABORATORY EQUIP - PURCHASES,BLOOD SCIENCES,THERMOFISHER DIAGNOSTICS LTD,3048303,"14,781.05"
NHS,UHCW NHS TRUST,17/03/2022,LABORATORY EQUIP - PURCHASES,BLOOD SCIENCES,THERMOFISHER DIAGNOSTICS LTD,3056881,"1,290.24"
NHS,UHCW NHS TRUST,17/03/2022,LABORATORY EQUIP - PURCHASES,BLOOD SCIENCES,THERMOFISHER DIAGNOSTICS LTD,3056881,258.05
NHS,UHCW NHS TRUST,17/03/2022,LABORATORY EQUIP - PURCHASES,BLOOD SCIENCES,THERMOFISHER DIAGNOSTICS LTD,3056881,"2,580.48"
NHS,UHCW NHS TRUST,17/03/2022,LABORATORY EQUIP - PURCHASES,BLOOD SCIENCES,THERMOFISHER DIAGNOSTICS LTD,3056881,258.05
NHS,UHCW NHS TRUST,17/03/2022,LABORATORY EQUIP - PURCHASES,BLOOD SCIENCES,THERMOFISHER DIAGNOSTICS LTD,3056881,"5,160.96"
NHS,UHCW NHS TRUST,17/03/2022,LABORATORY EQUIP - PURCHASES,BLOOD SCIENCES,THERMOFISHER DIAGNOSTICS LTD,3056881,516.1
NHS,UHCW NHS TRUST,17/03/2022,LABORATORY EQUIP - PURCHASES,BLOOD SCIENCES,THERMOFISHER DIAGNOSTICS LTD,3056881,"1,806.34"
NHS,UHCW NHS TRUST,17/03/2022,LABORATORY EQUIP - PURCHASES,BLOOD SCIENCES,THERMOFISHER DIAGNOSTICS LTD,3056881,516.1
NHS,UHCW NHS TRUST,17/03/2022,LABORATORY EQUIP - PURCHASES,BLOOD SCIENCES,THERMOFISHER DIAGNOSTICS LTD,3056881,516.1
NHS,UHCW NHS TRUST,17/03/2022,LABORATORY EQUIP - PURCHASES,BLOOD SCIENCES,THERMOFISHER DIAGNOSTICS LTD,3056881,"8,490.24"
NHS,UHCW NHS TRUST,17/03/2022,LABORATORY EQUIP - PURCHASES,BLOOD SCIENCES,THERMOFISHER DIAGNOSTICS LTD,3056881,659.52
NHS,UHCW NHS TRUST,17/03/2022,LABORATORY EQUIP - PURCHASES,BLOOD SCIENCES,THERMOFISHER DIAGNOSTICS LTD,3056881,"1,099.20"
NHS,UHCW NHS TRUST,17/03/2022,LABORATORY EQUIP - PURCHASES,BLOOD SCIENCES,THERMOFISHER DIAGNOSTICS LTD,3056881,274.8
NHS,UHCW NHS TRUST,17/03/2022,LABORATORY EQUIP - PURCHASES,BLOOD SCIENCES,THERMOFISHER DIAGNOSTICS LTD,3056881,"1,319.04"
NHS,UHCW NHS TRUST,17/03/2022,LABORATORY EQUIP - PURCHASES,BLOOD SCIENCES,THERMOFISHER DIAGNOSTICS LTD,3056881,219.84
NHS,UHCW NHS TRUST,17/03/2022,LABORATORY EQUIP - PURCHASES,BLOOD SCIENCES,THERMOFISHER DIAGNOSTICS LTD,3056881,397.44
NHS,UHCW NHS TRUST,17/03/2022,LABORATORY EQUIP - PURCHASES,BLOOD SCIENCES,THERMOFISHER DIAGNOSTICS LTD,3056881,219.84
NHS,UHCW NHS TRUST,17/03/2022,LABORATORY EQUIP - PURCHASES,BLOOD SCIENCES,THERMOFISHER DIAGNOSTICS LTD,3056881,219.84
NHS,UHCW NHS TRUST,17/03/2022,LABORATORY EQUIP - PURCHASES,BLOOD SCIENCES,THERMOFISHER DIAGNOSTICS LTD,3056881,243.36
NHS,UHCW NHS TRUST,17/03/2022,LABORATORY EQUIP - PURCHASES,BLOOD SCIENCES,THERMOFISHER DIAGNOSTICS LTD,3056881,219.84
NHS,UHCW NHS TRUST,17/03/2022,LABORATORY EQUIP - PURCHASES,BLOOD SCIENCES,THERMOFISHER DIAGNOSTICS LTD,3056881,439.68
NHS,UHCW NHS TRUST,17/03/2022,LABORATORY EQUIP - PURCHASES,BLOOD SCIENCES,THERMOFISHER DIAGNOSTICS LTD,3056881,659.52
NHS,UHCW NHS TRUST,17/03/2022,LABORATORY EQUIP - PURCHASES,BLOOD SCIENCES,THERMOFISHER DIAGNOSTICS LTD,3056881,879.36
NHS,UHCW NHS TRUST,17/03/2022,LABORATORY EQUIP - PURCHASES,BLOOD SCIENCES,THERMOFISHER DIAGNOSTICS LTD,3056881,"1,758.72"
NHS,UHCW NHS TRUST,17/03/2022,LABORATORY EQUIP - PURCHASES,BLOOD SCIENCES,THERMOFISHER DIAGNOSTICS LTD,3056881,219.84
NHS,UHCW NHS TRUST,17/03/2022,LABORATORY EQUIP - PURCHASES,BLOOD SCIENCES,THERMOFISHER DIAGNOSTICS LTD,3056881,219.84
NHS,UHCW NHS TRUST,17/03/2022,LABORATORY EQUIP - PURCHASES,BLOOD SCIENCES,THERMOFISHER DIAGNOSTICS LTD,3056881,"22,959.88"
NHS,UHCW NHS TRUST,17/03/2022,LABORATORY EQUIP - PURCHASES,,CEPHEID UK LTD,3062503,"11,610.72"
NHS,UHCW NHS TRUST,17/03/2022,LABORATORY EQUIP - PURCHASES,,CEPHEID UK LTD,3062503,"21,692.16"
NHS,UHCW NHS TRUST,17/03/2022,LABORATORY EQUIP - PURCHASES,,CEPHEID UK LTD,3064104,"37,573.92"
NHS,UHCW NHS TRUST,17/03/2022,LABORATORY EQUIP - PURCHASES,,CEPHEID UK LTD,3064104,"29,026.80"
NHS,UHCW NHS TRUST,17/03/2022,LABORATORY EQUIP - PURCHASES,,CEPHEID UK LTD,3064106,"19,368.00"
NHS,UHCW NHS TRUST,17/03/2022,LABORATORY EQUIP - PURCHASES,,CEPHEID UK LTD,3064106,"7,916.40"
NHS,UHCW NHS TRUST,17/03/2022,LABORATORY EQUIP - PURCHASES,,CEPHEID UK LTD,3064459,"11,610.72"
NHS,UHCW NHS TRUST,17/03/2022,LABORATORY EQUIP - PURCHASES,,CEPHEID UK LTD,3064459,"21,692.16"
NHS,UHCW NHS TRUST,17/03/2022,LABORATORY EQUIP - PURCHASES,,MAST DIAGNOSTICS LTD,3065095,"80,640.00"
NHS,UHCW NHS TRUST,17/03/2022,LABORATORY EQUIP - PURCHASES,,MAST DIAGNOSTICS LTD,3065095,32
NHS,UHCW NHS TRUST,17/03/2022,LABORATORY EQUIP - PURCHASES,,MAST DIAGNOSTICS LTD,3065096,"14,820.00"
NHS,UHCW NHS TRUST,17/03/2022,LABORATORY EQUIP - PURCHASES,,MAST DIAGNOSTICS LTD,3065096,"4,200.00"
NHS,UHCW NHS TRUST,17/03/2022,LABORATORY EQUIP - PURCHASES,,MAST DIAGNOSTICS LTD,3065096,"5,808.00"
NHS,UHCW NHS TRUST,17/03/2022,LABORATORY EQUIP - PURCHASES,,MAST DIAGNOSTICS LTD,3065096,792
NHS,UHCW NHS TRUST,17/03/2022,LABORATORY EQUIP - PURCHASES,,MAST DIAGNOSTICS LTD,3065096,684
NHS,UHCW NHS TRUST,17/03/2022,LABORATORY EQUIP - PURCHASES,,MAST DIAGNOSTICS LTD,3065096,30
NHS,UHCW NHS TRUST,17/03/2022,INVENTORIES,BALANCE SHEET,BAYER U K LTD,3083031,"91,245.60"
NHS,UHCW NHS TRUST,17/03/2022,INVENTORIES,BALANCE SHEET,BAYER U K LTD,3083032,"98,089.02"
NHS,UHCW NHS TRUST,17/03/2022,INVENTORIES,BALANCE SHEET,CSL BEHRING UK LTD,3083126,"50,800.00"
NHS,UHCW NHS TRUST,17/03/2022,INVENTORIES,BALANCE SHEET,JANSSEN-CILAG LTD,3083141,"47,692.80"
NHS,UHCW NHS TRUST,17/03/2022,INVENTORIES,BALANCE SHEET,NOVARTIS PHARMACEUTICALS LTD,3083315,"80,136.00"
NHS,UHCW NHS TRUST,24/03/2022,SERVICES REC FROM NHS BODIES,GASTRO / ENDOSCOPY,SOUTH WARWICKSHIRE NHS FOUNDATION TRUST,2407730,"56,298.45"
NHS,UHCW NHS TRUST,24/03/2022,POSTAGE,INFORMATION AND COMMS TECH,RESTORE PLC ,2407744,"130,768.50"
NHS,UHCW NHS TRUST,24/03/2022,CAPITAL EXPENDITURE IN YEAR,CAPITAL,PORTAKABIN LTD,2407758,"87,051.60"
NHS,UHCW NHS TRUST,24/03/2022,DRUGS,GASTRO / ENDOSCOPY,NHS BUSINESS SERVICES AUTHORITY,2543957,"6,283.29"
NHS,UHCW NHS TRUST,24/03/2022,DRUGS,DERMATOLOGY,NHS BUSINESS SERVICES AUTHORITY,2543957,73.98
NHS,UHCW NHS TRUST,24/03/2022,DRUGS,GASTRO / ENDOSCOPY,NHS BUSINESS SERVICES AUTHORITY,2543957,"5,498.36"
NHS,UHCW NHS TRUST,24/03/2022,DRUGS,MEDICAL ILLUSTRATION,NHS BUSINESS SERVICES AUTHORITY,2543957,135.83
NHS,UHCW NHS TRUST,24/03/2022,DRUGS,OPHTHALMOLOGY,NHS BUSINESS SERVICES AUTHORITY,2543957,"2,132.33"
NHS,UHCW NHS TRUST,24/03/2022,DRUGS,NEPHROLOGY,NHS BUSINESS SERVICES AUTHORITY,2543957,"46,478.90"
NHS,UHCW NHS TRUST,24/03/2022,DRUGS,RHEUMATOLOGY,NHS BUSINESS SERVICES AUTHORITY,2543957,"3,189.36"
NHS,UHCW NHS TRUST,24/03/2022,DRUGS,PAEDIATRICS,NHS BUSINESS SERVICES AUTHORITY,2543957,20.12
NHS,UHCW NHS TRUST,24/03/2022,OTHER MISCELLANEOUS,DELIVERY,DELOITTE LLP,2547778,"117,181.20"
NHS,UHCW NHS TRUST,24/03/2022,INVENTORIES,BALANCE SHEET,HEALTHCARE AT HOME LTD,2815748,"-28,745.80"
NHS,UHCW NHS TRUST,24/03/2022,MEDICAL & SURGICAL EQUIP PURCH,CLIN PHYSICS & BIOMEDICAL ENG,TALLEY GROUP,2815782,"27,771.60"
NHS,UHCW NHS TRUST,24/03/2022,MEDICAL & SURGICAL EQUIP PURCH,CLIN PHYSICS & BIOMEDICAL ENG,TALLEY GROUP,2815796,"3,709.44"
NHS,UHCW NHS TRUST,24/03/2022,MEDICAL & SURGICAL EQUIP PURCH,CLIN PHYSICS & BIOMEDICAL ENG,TALLEY GROUP,2815796,364.08
NHS,UHCW NHS TRUST,24/03/2022,MEDICAL & SURGICAL EQUIP PURCH,CLIN PHYSICS & BIOMEDICAL ENG,TALLEY GROUP,2815796,410.8
NHS,UHCW NHS TRUST,24/03/2022,MEDICAL & SURGICAL EQUIP PURCH,CLIN PHYSICS & BIOMEDICAL ENG,TALLEY GROUP,2815796,629.16
NHS,UHCW NHS TRUST,24/03/2022,MEDICAL & SURGICAL EQUIP PURCH,CLIN PHYSICS & BIOMEDICAL ENG,TALLEY GROUP,2815796,336.6
NHS,UHCW NHS TRUST,24/03/2022,MEDICAL & SURGICAL EQUIP PURCH,CLIN PHYSICS & BIOMEDICAL ENG,TALLEY GROUP,2815796,"2,909.28"
NHS,UHCW NHS TRUST,24/03/2022,MEDICAL & SURGICAL EQUIP PURCH,CLIN PHYSICS & BIOMEDICAL ENG,TALLEY GROUP,2815796,24.36
NHS,UHCW NHS TRUST,24/03/2022,MEDICAL & SURGICAL EQUIP PURCH,CLIN PHYSICS & BIOMEDICAL ENG,TALLEY GROUP,2815796,920.88
NHS,UHCW NHS TRUST,24/03/2022,MEDICAL & SURGICAL EQUIP PURCH,CLIN PHYSICS & BIOMEDICAL ENG,TALLEY GROUP,2815796,188.88
NHS,UHCW NHS TRUST,24/03/2022,MEDICAL & SURGICAL EQUIP PURCH,CLIN PHYSICS & BIOMEDICAL ENG,TALLEY GROUP,2815796,453.31
NHS,UHCW NHS TRUST,24/03/2022,MEDICAL & SURGICAL EQUIP PURCH,CLIN PHYSICS & BIOMEDICAL ENG,TALLEY GROUP,2815796,"4,851.42"
NHS,UHCW NHS TRUST,24/03/2022,MEDICAL & SURGICAL EQUIP PURCH,CLIN PHYSICS & BIOMEDICAL ENG,TALLEY GROUP,2815796,"3,245.70"
NHS,UHCW NHS TRUST,24/03/2022,MEDICAL & SURGICAL EQUIP PURCH,CLIN PHYSICS & BIOMEDICAL ENG,TALLEY GROUP,2815796,"5,165.28"
NHS,UHCW NHS TRUST,24/03/2022,MEDICAL & SURGICAL EQUIP PURCH,CLIN PHYSICS & BIOMEDICAL ENG,TALLEY GROUP,2815796,"2,027.81"
NHS,UHCW NHS TRUST,24/03/2022,MEDICAL & SURGICAL EQUIP PURCH,CLIN PHYSICS & BIOMEDICAL ENG,TALLEY GROUP,2815796,"1,030.44"
NHS,UHCW NHS TRUST,24/03/2022,MEDICAL & SURGICAL EQUIP PURCH,CLIN PHYSICS & BIOMEDICAL ENG,TALLEY GROUP,2815796,206.4
NHS,UHCW NHS TRUST,24/03/2022,MEDICAL & SURGICAL EQUIP PURCH,CLIN PHYSICS & BIOMEDICAL ENG,TALLEY GROUP,2815796,"1,071.60"
NHS,UHCW NHS TRUST,24/03/2022,MEDICAL & SURGICAL EQUIP PURCH,CLIN PHYSICS & BIOMEDICAL ENG,TALLEY GROUP,2815796,721.31
NHS,UHCW NHS TRUST,24/03/2022,MEDICAL & SURGICAL EQUIP PURCH,CLIN PHYSICS & BIOMEDICAL ENG,TALLEY GROUP,2815796,"1,174.67"
NHS,UHCW NHS TRUST,24/03/2022,MEDICAL & SURGICAL EQUIP PURCH,CLIN PHYSICS & BIOMEDICAL ENG,TALLEY GROUP,2815822,"28,597.80"
NHS,UHCW NHS TRUST,24/03/2022,MEDICAL & SURGICAL EQUIP PURCH,CLIN PHYSICS & BIOMEDICAL ENG,TALLEY GROUP,2815823,"32,997.00"
NHS,UHCW NHS TRUST,24/03/2022,SERVICES FROM PCTS,CORPORATE FINANCE,SOUTH WARWICKSHIRE NHS FOUNDATION TRUST,2863788,"32,562.50"
NHS,UHCW NHS TRUST,24/03/2022,FURNITURE OFFICE & COMP EQUIP,INFORMATION AND COMMS TECH,3M UNITED KINGDOM PLC,2863827,"45,600.00"
NHS,UHCW NHS TRUST,24/03/2022,CAPITAL EXPENDITURE IN YEAR,CAPITAL,MODULECO LIMITED,2863965,"37,666.80"
NHS,UHCW NHS TRUST,24/03/2022,DRUGS,GASTRO / ENDOSCOPY,NHS BUSINESS SERVICES AUTHORITY,2863970,"6,280.69"
NHS,UHCW NHS TRUST,24/03/2022,DRUGS,DERMATOLOGY,NHS BUSINESS SERVICES AUTHORITY,2863970,57.35
NHS,UHCW NHS TRUST,24/03/2022,DRUGS,GASTRO / ENDOSCOPY,NHS BUSINESS SERVICES AUTHORITY,2863970,"4,174.25"
NHS,UHCW NHS TRUST,24/03/2022,DRUGS,ENDOCRINOLOGY,NHS BUSINESS SERVICES AUTHORITY,2863970,120.68
NHS,UHCW NHS TRUST,24/03/2022,DRUGS,OPHTHALMOLOGY,NHS BUSINESS SERVICES AUTHORITY,2863970,"1,206.55"
NHS,UHCW NHS TRUST,24/03/2022,DRUGS,NEPHROLOGY,NHS BUSINESS SERVICES AUTHORITY,2863970,"38,262.57"
NHS,UHCW NHS TRUST,24/03/2022,DRUGS,RHEUMATOLOGY,NHS BUSINESS SERVICES AUTHORITY,2863970,"2,495.71"
NHS,UHCW NHS TRUST,24/03/2022,DRUGS,GASTRO / ENDOSCOPY,NHS BUSINESS SERVICES AUTHORITY,2863971,"5,480.86"
NHS,UHCW NHS TRUST,24/03/2022,DRUGS,DERMATOLOGY,NHS BUSINESS SERVICES AUTHORITY,2863971,87.96
NHS,UHCW NHS TRUST,24/03/2022,DRUGS,GASTRO / ENDOSCOPY,NHS BUSINESS SERVICES AUTHORITY,2863971,"5,582.72"
NHS,UHCW NHS TRUST,24/03/2022,DRUGS,ENDOCRINOLOGY,NHS BUSINESS SERVICES AUTHORITY,2863971,123.66
NHS,UHCW NHS TRUST,24/03/2022,DRUGS,OPHTHALMOLOGY,NHS BUSINESS SERVICES AUTHORITY,2863971,"1,544.07"
NHS,UHCW NHS TRUST,24/03/2022,DRUGS,NEPHROLOGY,NHS BUSINESS SERVICES AUTHORITY,2863971,"53,361.97"
NHS,UHCW NHS TRUST,24/03/2022,DRUGS,RHEUMATOLOGY,NHS BUSINESS SERVICES AUTHORITY,2863971,"2,589.36"
NHS,UHCW NHS TRUST,24/03/2022,DRUGS,GASTRO / ENDOSCOPY,NHS BUSINESS SERVICES AUTHORITY,2863972,"4,587.26"
NHS,UHCW NHS TRUST,24/03/2022,DRUGS,DERMATOLOGY,NHS BUSINESS SERVICES AUTHORITY,2863972,6.79
NHS,UHCW NHS TRUST,24/03/2022,DRUGS,GASTRO / ENDOSCOPY,NHS BUSINESS SERVICES AUTHORITY,2863972,"5,428.42"
NHS,UHCW NHS TRUST,24/03/2022,DRUGS,ENDOCRINOLOGY,NHS BUSINESS SERVICES AUTHORITY,2863972,50.22
NHS,UHCW NHS TRUST,24/03/2022,DRUGS,ORTHOPAEDICS,NHS BUSINESS SERVICES AUTHORITY,2863972,"2,185.72"
NHS,UHCW NHS TRUST,24/03/2022,DRUGS,NEPHROLOGY,NHS BUSINESS SERVICES AUTHORITY,2863972,"54,830.64"
NHS,UHCW NHS TRUST,24/03/2022,DRUGS,RHEUMATOLOGY,NHS BUSINESS SERVICES AUTHORITY,2863972,"2,724.05"
NHS,UHCW NHS TRUST,24/03/2022,DRUGS,GASTRO / ENDOSCOPY,NHS BUSINESS SERVICES AUTHORITY,2863973,"5,916.85"
NHS,UHCW NHS TRUST,24/03/2022,DRUGS,DERMATOLOGY,NHS BUSINESS SERVICES AUTHORITY,2863973,181.9
NHS,UHCW NHS TRUST,24/03/2022,DRUGS,GASTRO / ENDOSCOPY,NHS BUSINESS SERVICES AUTHORITY,2863973,"4,925.26"
NHS,UHCW NHS TRUST,24/03/2022,DRUGS,ENDOCRINOLOGY,NHS BUSINESS SERVICES AUTHORITY,2863973,117.44
NHS,UHCW NHS TRUST,24/03/2022,DRUGS,OPHTHALMOLOGY,NHS BUSINESS SERVICES AUTHORITY,2863973,"1,866.54"
NHS,UHCW NHS TRUST,24/03/2022,DRUGS,NEPHROLOGY,NHS BUSINESS SERVICES AUTHORITY,2863973,"32,653.64"
NHS,UHCW NHS TRUST,24/03/2022,DRUGS,RHEUMATOLOGY,NHS BUSINESS SERVICES AUTHORITY,2863973,"2,486.25"
NHS,UHCW NHS TRUST,24/03/2022,DRUGS,PAEDIATRICS,NHS BUSINESS SERVICES AUTHORITY,2863973,499.14
NHS,UHCW NHS TRUST,24/03/2022,RENTS & RATES,RENAL DIALYSIS,ASSURA,2888080,"58,375.80"
NHS,UHCW NHS TRUST,24/03/2022,BLOOD PRODUCTS,CLINICAL HAEMATOLOGY,HEALTHCARE AT HOME LTD,2890037,"123,531.97"
NHS,UHCW NHS TRUST,24/03/2022,SERVICES REC FROM NHS BODIES,DERMATOLOGY,GEORGE ELIOT HOSP  NHS TRUST,2913945,"41,743.44"
NHS,UHCW NHS TRUST,24/03/2022,SERVICES REC FROM NHS BODIES,PATHOLOGY MANAGEMENT,GEORGE ELIOT HOSP  NHS TRUST,2913949,"28,096.90"
NHS,UHCW NHS TRUST,24/03/2022,SERVICES REC FROM NHS BODIES,PATHOLOGY,SOUTH WARWICKSHIRE NHS FOUNDATION TRUST,2914039,"126,689.06"
NHS,UHCW NHS TRUST,24/03/2022,CONSULTANTS,CLINICAL HAEMATOLOGY,SOUTH WARWICKSHIRE NHS FOUNDATION TRUST,2914051,"34,935.42"
NHS,UHCW NHS TRUST,24/03/2022,SERVICES REC FROM NHS BODIES,CLINICAL HAEMATOLOGY,SOUTH WARWICKSHIRE NHS FOUNDATION TRUST,2914054,"29,711.83"
NHS,UHCW NHS TRUST,24/03/2022,SENIOR MANAGERS,EXECUTIVES,SOUTH WARWICKSHIRE NHS FOUNDATION TRUST,2914058,"43,929.03"
NHS,UHCW NHS TRUST,24/03/2022,MEDICAL & SURGICAL EQUIP PURCH,RENAL DIALYSIS,FRESENIUS MEDICAL CARE RENAL SERVICES LT,2914104,"29,800.29"
NHS,UHCW NHS TRUST,24/03/2022,OTHER TRANS / MOVEABLE PLANT,PATHOLOGY MANAGEMENT,QE FACILITIES LIMITED ,2914128,"149,197.10"
NHS,UHCW NHS TRUST,24/03/2022,OTHER ESTABLISHMENT COSTS,RESEARCH & DEVELOPMENT,COVENTRY UNIVERSITY,2959631,"70,000.00"
NHS,UHCW NHS TRUST,24/03/2022,OTHER ESTABLISHMENT COSTS,RESEARCH & DEVELOPMENT,COVENTRY UNIVERSITY,2959631,"70,000.00"
NHS,UHCW NHS TRUST,24/03/2022,OTHER ESTABLISHMENT COSTS,RESEARCH & DEVELOPMENT,COVENTRY UNIVERSITY,2959631,"70,000.00"
NHS,UHCW NHS TRUST,24/03/2022,CONSULTANTS,CARDIOLOGY,WORCESTERSHIRE ACUTE HOSPITAL,2959658,"358,025.00"
NHS,UHCW NHS TRUST,24/03/2022,SERVICES REC FROM NHS BODIES,CARDIOLOGY,WORCESTERSHIRE ACUTE HOSPITAL,2959659,"223,745.00"
NHS,UHCW NHS TRUST,24/03/2022,CONSULTANTS,NEPHROLOGY,SOUTH WARWICKSHIRE NHS FOUNDATION TRUST,2959668,"65,154.05"
NHS,UHCW NHS TRUST,24/03/2022,OTHER ESTABLISHMENT COSTS,CORPORATE FINANCE,COVENTRY & RUGBY HOSPITAL COMPANY PLC,2959700,"508,176.37"
NHS,UHCW NHS TRUST,24/03/2022,OTHER ESTABLISHMENT COSTS,CORPORATE FINANCE,COVENTRY & RUGBY HOSPITAL COMPANY PLC,2959701,"69,681.09"
NHS,UHCW NHS TRUST,24/03/2022,OTHER ESTABLISHMENT COSTS,ESTATES,COVENTRY & RUGBY HOSPITAL COMPANY PLC,2959708,"173,380.67"
NHS,UHCW NHS TRUST,24/03/2022,OTHER ESTABLISHMENT COSTS,ESTATES,COVENTRY & RUGBY HOSPITAL COMPANY PLC,2959711,"174,052.33"
NHS,UHCW NHS TRUST,24/03/2022,RENTS & RATES,RENAL DIALYSIS,ASSURA,2979748,"58,375.80"
NHS,UHCW NHS TRUST,24/03/2022,RENTS & RATES,RENAL DIALYSIS,ASSURA,2979768,"11,675.16"
NHS,UHCW NHS TRUST,24/03/2022,RENTS & RATES,RENAL DIALYSIS,ASSURA,2979768,"46,974.54"
NHS,UHCW NHS TRUST,24/03/2022,RENTS & RATES,RENAL DIALYSIS,ASSURA,2979768,"3,024.84"
NHS,UHCW NHS TRUST,24/03/2022,EXTERNAL GENERAL SVS CONTRACTS,INFORMATION AND COMMS TECH,KONICA MINOLTA BUSINESS SOLUTIONS (UK) L,2980113,"119,337.59"
NHS,UHCW NHS TRUST,24/03/2022,MEDICAL & SURGICAL EQUIP MAINT,GASTRO / ENDOSCOPY,OLYMPUS KEYMED LTD,3056591,"87,771.52"
NHS,UHCW NHS TRUST,24/03/2022,MEDICAL & SURGICAL EQUIP MAINT,THEATRES,OLYMPUS KEYMED LTD,3056593,"29,773.65"
NHS,UHCW NHS TRUST,24/03/2022,MEDICAL & SURGICAL EQUIP MAINT,THEATRES,OLYMPUS KEYMED LTD,3056602,"70,401.00"
NHS,UHCW NHS TRUST,24/03/2022,MEDICAL & SURGICAL EQUIP MAINT,GASTRO / ENDOSCOPY,OLYMPUS KEYMED LTD,3056611,"296,297.80"
NHS,UHCW NHS TRUST,24/03/2022,MEDICAL & SURGICAL EQUIP MAINT,GASTRO / ENDOSCOPY,OLYMPUS KEYMED LTD,3056635,"67,603.19"
NHS,UHCW NHS TRUST,24/03/2022,FURNITURE OFFICE & COMP EQUIP,INFORMATION AND COMMS TECH,3M UNITED KINGDOM PLC,3056929,"45,600.00"
NHS,UHCW NHS TRUST,24/03/2022,LABORATORY EQUIP - PURCHASES,,MAST DIAGNOSTICS LTD,3057854,"14,820.00"
NHS,UHCW NHS TRUST,24/03/2022,LABORATORY EQUIP - PURCHASES,,MAST DIAGNOSTICS LTD,3057854,"3,120.00"
NHS,UHCW NHS TRUST,24/03/2022,LABORATORY EQUIP - PURCHASES,,MAST DIAGNOSTICS LTD,3057854,"5,808.00"
NHS,UHCW NHS TRUST,24/03/2022,LABORATORY EQUIP - PURCHASES,,MAST DIAGNOSTICS LTD,3057854,792
NHS,UHCW NHS TRUST,24/03/2022,LABORATORY EQUIP - PURCHASES,,MAST DIAGNOSTICS LTD,3057854,684
NHS,UHCW NHS TRUST,24/03/2022,LABORATORY EQUIP - PURCHASES,,MAST DIAGNOSTICS LTD,3057854,30
NHS,UHCW NHS TRUST,24/03/2022,CAPITAL EXPENDITURE IN YEAR,CAPITAL,PROACT IT UK LTD,3063562,"118,069.22"
NHS,UHCW NHS TRUST,24/03/2022,CAPITAL EXPENDITURE IN YEAR,CAPITAL,PROACT IT UK LTD,3063562,"86,709.94"
NHS,UHCW NHS TRUST,24/03/2022,CAPITAL EXPENDITURE IN YEAR,CAPITAL,PROACT IT UK LTD,3063562,"25,200.00"
NHS,UHCW NHS TRUST,24/03/2022,CAPITAL EXPENDITURE IN YEAR,CAPITAL,PROACT IT UK LTD,3063562,"123,478.80"
NHS,UHCW NHS TRUST,24/03/2022,LABORATORY EQUIP - PURCHASES,,CEPHEID UK LTD,3066070,"45,170.40"
NHS,UHCW NHS TRUST,24/03/2022,LABORATORY EQUIP - PURCHASES,,CEPHEID UK LTD,3067091,"37,131.60"
NHS,UHCW NHS TRUST,24/03/2022,CAPITAL EXPENDITURE IN YEAR,CAPITAL,INSIGHT DIRECT (UK) LTD,3068020,"72,993.71"
NHS,UHCW NHS TRUST,24/03/2022,AUDITORS REMUNERATION,CORPORATE FINANCE,KPMG LLP,3068234,"34,824.60"
NHS,UHCW NHS TRUST,29/03/2022,CAPITAL EXPENDITURE IN YEAR,CAPITAL,PROACT IT UK LTD,2547540,"34,800.00"
NHS,UHCW NHS TRUST,29/03/2022,OTHER ESTABLISHMENT COSTS,RESEARCH ACCOUNT,UNIVERSITY OF WARWICK,2815910,"36,144.00"
NHS,UHCW NHS TRUST,29/03/2022,OTHER ESTABLISHMENT COSTS,ESTATES,COVENTRY & RUGBY HOSPITAL COMPANY PLC,2815919,"93,157.61"
NHS,UHCW NHS TRUST,29/03/2022,RENTS & RATES,ESTATES,COVENTRY & RUGBY HOSPITAL COMPANY PLC,2815919,"1,010,624.54"
NHS,UHCW NHS TRUST,29/03/2022,RENTS & RATES,ESTATES,COVENTRY & RUGBY HOSPITAL COMPANY PLC,2815920,"-743,369.15"
NHS,UHCW NHS TRUST,29/03/2022,CAPITAL EXPENDITURE IN YEAR,CAPITAL,COVENTRY & RUGBY HOSPITAL COMPANY PLC,2815921,"383,528.01"
NHS,UHCW NHS TRUST,29/03/2022,BUILDING & ENG EQUIPMENT,ESTATES,COVENTRY & RUGBY HOSPITAL COMPANY PLC,2815921,"26,871.43"
NHS,UHCW NHS TRUST,29/03/2022,MEDICAL & SURGICAL EQUIP PURCH,ESTATES,COVENTRY & RUGBY HOSPITAL COMPANY PLC,2815921,"5,356.66"
NHS,UHCW NHS TRUST,29/03/2022,RENTS & RATES,ESTATES,COVENTRY & RUGBY HOSPITAL COMPANY PLC,2815923,"-32,009.09"
NHS,UHCW NHS TRUST,29/03/2022,RENTS & RATES,ESTATES,COVENTRY & RUGBY HOSPITAL COMPANY PLC,2815925,"-79,093.57"
NHS,UHCW NHS TRUST,29/03/2022,RENTS & RATES,ESTATES,COVENTRY & RUGBY HOSPITAL COMPANY PLC,2815926,"-450,746.37"
NHS,UHCW NHS TRUST,29/03/2022,RENTS & RATES,ESTATES,COVENTRY & RUGBY HOSPITAL COMPANY PLC,2815927,"-385,441.70"
NHS,UHCW NHS TRUST,29/03/2022,RENTS & RATES,ESTATES,COVENTRY & RUGBY HOSPITAL COMPANY PLC,2815928,"-79,093.57"
NHS,UHCW NHS TRUST,29/03/2022,RENTS & RATES,ESTATES,COVENTRY & RUGBY HOSPITAL COMPANY PLC,2815929,"-71,439.35"
NHS,UHCW NHS TRUST,29/03/2022,RENTS & RATES,ESTATES,COVENTRY & RUGBY HOSPITAL COMPANY PLC,2815930,"-385,441.70"
NHS,UHCW NHS TRUST,29/03/2022,CAPITAL EXPENDITURE IN YEAR,CAPITAL,COVENTRY & RUGBY HOSPITAL COMPANY PLC,2815935,"102,252.62"
NHS,UHCW NHS TRUST,29/03/2022,CAPITAL EXPENDITURE IN YEAR,CAPITAL,COVENTRY & RUGBY HOSPITAL COMPANY PLC,2815936,"66,137.92"
NHS,UHCW NHS TRUST,29/03/2022,BUILDING & ENG EQUIPMENT,ESTATES,COVENTRY & RUGBY HOSPITAL COMPANY PLC,2815936,"12,917.28"
NHS,UHCW NHS TRUST,29/03/2022,CAPITAL EXPENDITURE IN YEAR,CAPITAL,COVENTRY & RUGBY HOSPITAL COMPANY PLC,2815936,"19,404.14"
NHS,UHCW NHS TRUST,29/03/2022,CAPITAL EXPENDITURE IN YEAR,CAPITAL,COVENTRY & RUGBY HOSPITAL COMPANY PLC,2815936,"27,305.12"
NHS,UHCW NHS TRUST,29/03/2022,OTHER ESTABLISHMENT COSTS,ESTATES,COVENTRY & RUGBY HOSPITAL COMPANY PLC,2815937,"46,000.00"
NHS,UHCW NHS TRUST,29/03/2022,OTHER ESTABLISHMENT COSTS,ESTATES,COVENTRY & RUGBY HOSPITAL COMPANY PLC,2815937,"11,906.00"
NHS,UHCW NHS TRUST,29/03/2022,CAPITAL EXPENDITURE IN YEAR,CAPITAL,LITECHNICA LTD,2815954,"34,794.00"
NHS,UHCW NHS TRUST,29/03/2022,CAPITAL EXPENDITURE IN YEAR,CAPITAL,LITECHNICA LTD,2815954,580.8
NHS,UHCW NHS TRUST,29/03/2022,CAPITAL EXPENDITURE IN YEAR,CAPITAL,LITECHNICA LTD,2815954,704.4
NHS,UHCW NHS TRUST,29/03/2022,CAPITAL EXPENDITURE IN YEAR,CAPITAL,LITECHNICA LTD,2815954,704.4
NHS,UHCW NHS TRUST,29/03/2022,CAPITAL EXPENDITURE IN YEAR,CAPITAL,LITECHNICA LTD,2815954,704.4
NHS,UHCW NHS TRUST,29/03/2022,CAPITAL EXPENDITURE IN YEAR,CAPITAL,LITECHNICA LTD,2815954,420
NHS,UHCW NHS TRUST,29/03/2022,DRUGS,PHARMACY,LLOYDS RETAIL CHEMISTS LTD,2815957,"-37,319.29"
NHS,UHCW NHS TRUST,29/03/2022,DRUGS,PHARMACY,LLOYDS RETAIL CHEMISTS LTD,2815959,"196,927.85"
NHS,UHCW NHS TRUST,29/03/2022,DRUGS,PHARMACY,LLOYDS RETAIL CHEMISTS LTD,2815959,283.81
NHS,UHCW NHS TRUST,29/03/2022,DRUGS,PHARMACY,LLOYDS RETAIL CHEMISTS LTD,2815960,30.13
NHS,UHCW NHS TRUST,29/03/2022,DRUGS,PHARMACY,LLOYDS RETAIL CHEMISTS LTD,2815960,"1,003,941.26"
NHS,UHCW NHS TRUST,29/03/2022,OTHER ESTABLISHMENT COSTS,ESTATES,COVENTRY & RUGBY HOSPITAL COMPANY PLC,2815968,"38,063.20"
NHS,UHCW NHS TRUST,29/03/2022,OTHER ESTABLISHMENT COSTS,ESTATES,COVENTRY & RUGBY HOSPITAL COMPANY PLC,2815971,"196,248.76"
NHS,UHCW NHS TRUST,29/03/2022,OTHER ESTABLISHMENT COSTS,ESTATES,COVENTRY & RUGBY HOSPITAL COMPANY PLC,2815972,"90,596.55"
NHS,UHCW NHS TRUST,29/03/2022,OTHER ESTABLISHMENT COSTS,ESTATES,COVENTRY & RUGBY HOSPITAL COMPANY PLC,2815973,"120,252.54"
NHS,UHCW NHS TRUST,29/03/2022,OTHER ESTABLISHMENT COSTS,ESTATES,COVENTRY & RUGBY HOSPITAL COMPANY PLC,2815974,"13,142.20"
NHS,UHCW NHS TRUST,29/03/2022,OTHER ESTABLISHMENT COSTS,ESTATES,COVENTRY & RUGBY HOSPITAL COMPANY PLC,2815974,"51,571.35"
NHS,UHCW NHS TRUST,29/03/2022,OTHER ESTABLISHMENT COSTS,RESEARCH & DEVELOPMENT,UNAI LTD,2815975,"89,520.00"
NHS,UHCW NHS TRUST,29/03/2022,CAPITAL EXPENDITURE IN YEAR,CAPITAL,PROACT IT UK LTD,3057981,"97,401.71"
NHS,UHCW NHS TRUST,29/03/2022,LABORATORY EQUIP - PURCHASES,BLOOD SCIENCES,THERMOFISHER DIAGNOSTICS LTD,3060905,0.01
NHS,UHCW NHS TRUST,29/03/2022,LABORATORY EQUIP - PURCHASES,BLOOD SCIENCES,THERMOFISHER DIAGNOSTICS LTD,3060905,215.04
NHS,UHCW NHS TRUST,29/03/2022,LABORATORY EQUIP - PURCHASES,BLOOD SCIENCES,THERMOFISHER DIAGNOSTICS LTD,3060905,"2,580.48"
NHS,UHCW NHS TRUST,29/03/2022,LABORATORY EQUIP - PURCHASES,BLOOD SCIENCES,THERMOFISHER DIAGNOSTICS LTD,3060905,516.1
NHS,UHCW NHS TRUST,29/03/2022,LABORATORY EQUIP - PURCHASES,BLOOD SCIENCES,THERMOFISHER DIAGNOSTICS LTD,3060905,258.05
NHS,UHCW NHS TRUST,29/03/2022,LABORATORY EQUIP - PURCHASES,BLOOD SCIENCES,THERMOFISHER DIAGNOSTICS LTD,3060905,516.1
NHS,UHCW NHS TRUST,29/03/2022,LABORATORY EQUIP - PURCHASES,BLOOD SCIENCES,THERMOFISHER DIAGNOSTICS LTD,3060905,258.05
NHS,UHCW NHS TRUST,29/03/2022,LABORATORY EQUIP - PURCHASES,BLOOD SCIENCES,THERMOFISHER DIAGNOSTICS LTD,3060905,258.05
NHS,UHCW NHS TRUST,29/03/2022,LABORATORY EQUIP - PURCHASES,BLOOD SCIENCES,THERMOFISHER DIAGNOSTICS LTD,3060905,258.05
NHS,UHCW NHS TRUST,29/03/2022,LABORATORY EQUIP - PURCHASES,BLOOD SCIENCES,THERMOFISHER DIAGNOSTICS LTD,3060905,387.07
NHS,UHCW NHS TRUST,29/03/2022,LABORATORY EQUIP - PURCHASES,BLOOD SCIENCES,THERMOFISHER DIAGNOSTICS LTD,3060905,129.02
NHS,UHCW NHS TRUST,29/03/2022,LABORATORY EQUIP - PURCHASES,BLOOD SCIENCES,THERMOFISHER DIAGNOSTICS LTD,3060905,"1,290.24"
NHS,UHCW NHS TRUST,29/03/2022,LABORATORY EQUIP - PURCHASES,BLOOD SCIENCES,THERMOFISHER DIAGNOSTICS LTD,3060905,258.05
NHS,UHCW NHS TRUST,29/03/2022,LABORATORY EQUIP - PURCHASES,BLOOD SCIENCES,THERMOFISHER DIAGNOSTICS LTD,3060905,258.05
NHS,UHCW NHS TRUST,29/03/2022,LABORATORY EQUIP - PURCHASES,BLOOD SCIENCES,THERMOFISHER DIAGNOSTICS LTD,3060905,774.14
NHS,UHCW NHS TRUST,29/03/2022,LABORATORY EQUIP - PURCHASES,BLOOD SCIENCES,THERMOFISHER DIAGNOSTICS LTD,3060905,"1,160.64"
NHS,UHCW NHS TRUST,29/03/2022,LABORATORY EQUIP - PURCHASES,BLOOD SCIENCES,THERMOFISHER DIAGNOSTICS LTD,3060905,219.84
NHS,UHCW NHS TRUST,29/03/2022,LABORATORY EQUIP - PURCHASES,BLOOD SCIENCES,THERMOFISHER DIAGNOSTICS LTD,3060905,659.52
NHS,UHCW NHS TRUST,29/03/2022,LABORATORY EQUIP - PURCHASES,BLOOD SCIENCES,THERMOFISHER DIAGNOSTICS LTD,3060905,"43,149.83"
NHS,UHCW NHS TRUST,29/03/2022,CAPITAL EXPENDITURE IN YEAR,CAPITAL,PROACT IT UK LTD,3061930,"88,112.88"
NHS,UHCW NHS TRUST,29/03/2022,CAPITAL EXPENDITURE IN YEAR,CAPITAL,ORTHOFIX LTD,3062384,"40,799.99"
NHS,UHCW NHS TRUST,29/03/2022,CAPITAL EXPENDITURE IN YEAR,CAPITAL,PROACT IT UK LTD,3063366,"141,529.27"
NHS,UHCW NHS TRUST,29/03/2022,OTHER MISCELLANEOUS,CORPORATE FINANCE,LANGUAGELINE SOLUTIONS,3063511,"37,418.40"
NHS,UHCW NHS TRUST,29/03/2022,LABORATORY EQUIP - PURCHASES,BLOOD SCIENCES,THERMOFISHER DIAGNOSTICS LTD,3066340,"1,290.24"
NHS,UHCW NHS TRUST,29/03/2022,LABORATORY EQUIP - PURCHASES,BLOOD SCIENCES,THERMOFISHER DIAGNOSTICS LTD,3066340,0.01
NHS,UHCW NHS TRUST,29/03/2022,LABORATORY EQUIP - PURCHASES,BLOOD SCIENCES,THERMOFISHER DIAGNOSTICS LTD,3066340,"2,580.48"
NHS,UHCW NHS TRUST,29/03/2022,LABORATORY EQUIP - PURCHASES,BLOOD SCIENCES,THERMOFISHER DIAGNOSTICS LTD,3066340,516.1
NHS,UHCW NHS TRUST,29/03/2022,LABORATORY EQUIP - PURCHASES,BLOOD SCIENCES,THERMOFISHER DIAGNOSTICS LTD,3066340,516.1
NHS,UHCW NHS TRUST,29/03/2022,LABORATORY EQUIP - PURCHASES,BLOOD SCIENCES,THERMOFISHER DIAGNOSTICS LTD,3066340,516.1
NHS,UHCW NHS TRUST,29/03/2022,LABORATORY EQUIP - PURCHASES,BLOOD SCIENCES,THERMOFISHER DIAGNOSTICS LTD,3066340,258.05
NHS,UHCW NHS TRUST,29/03/2022,LABORATORY EQUIP - PURCHASES,BLOOD SCIENCES,THERMOFISHER DIAGNOSTICS LTD,3066340,"2,580.48"
NHS,UHCW NHS TRUST,29/03/2022,LABORATORY EQUIP - PURCHASES,BLOOD SCIENCES,THERMOFISHER DIAGNOSTICS LTD,3066340,"5,160.96"
NHS,UHCW NHS TRUST,29/03/2022,LABORATORY EQUIP - PURCHASES,BLOOD SCIENCES,THERMOFISHER DIAGNOSTICS LTD,3066340,516.1
NHS,UHCW NHS TRUST,29/03/2022,LABORATORY EQUIP - PURCHASES,BLOOD SCIENCES,THERMOFISHER DIAGNOSTICS LTD,3066340,516.1
NHS,UHCW NHS TRUST,29/03/2022,LABORATORY EQUIP - PURCHASES,BLOOD SCIENCES,THERMOFISHER DIAGNOSTICS LTD,3066340,"1,290.24"
NHS,UHCW NHS TRUST,29/03/2022,LABORATORY EQUIP - PURCHASES,BLOOD SCIENCES,THERMOFISHER DIAGNOSTICS LTD,3066340,"16,980.48"
NHS,UHCW NHS TRUST,29/03/2022,LABORATORY EQUIP - PURCHASES,BLOOD SCIENCES,THERMOFISHER DIAGNOSTICS LTD,3066340,"4,642.56"
NHS,UHCW NHS TRUST,29/03/2022,LABORATORY EQUIP - PURCHASES,BLOOD SCIENCES,THERMOFISHER DIAGNOSTICS LTD,3066340,219.84
NHS,UHCW NHS TRUST,29/03/2022,LABORATORY EQUIP - PURCHASES,BLOOD SCIENCES,THERMOFISHER DIAGNOSTICS LTD,3066340,"1,319.04"
NHS,UHCW NHS TRUST,29/03/2022,LABORATORY EQUIP - PURCHASES,BLOOD SCIENCES,THERMOFISHER DIAGNOSTICS LTD,3066340,"1,538.88"
NHS,UHCW NHS TRUST,29/03/2022,LABORATORY EQUIP - PURCHASES,BLOOD SCIENCES,THERMOFISHER DIAGNOSTICS LTD,3066340,"1,099.20"
NHS,UHCW NHS TRUST,29/03/2022,LABORATORY EQUIP - PURCHASES,BLOOD SCIENCES,THERMOFISHER DIAGNOSTICS LTD,3066340,219.84
NHS,UHCW NHS TRUST,29/03/2022,LABORATORY EQUIP - PURCHASES,BLOOD SCIENCES,THERMOFISHER DIAGNOSTICS LTD,3066340,"1,099.20"
NHS,UHCW NHS TRUST,29/03/2022,LABORATORY EQUIP - PURCHASES,BLOOD SCIENCES,THERMOFISHER DIAGNOSTICS LTD,3066340,"1,538.88"
NHS,UHCW NHS TRUST,29/03/2022,LABORATORY EQUIP - PURCHASES,BLOOD SCIENCES,THERMOFISHER DIAGNOSTICS LTD,3066340,219.84
NHS,UHCW NHS TRUST,29/03/2022,LABORATORY EQUIP - PURCHASES,BLOOD SCIENCES,THERMOFISHER DIAGNOSTICS LTD,3066340,"1,319.04"
NHS,UHCW NHS TRUST,29/03/2022,LABORATORY EQUIP - PURCHASES,BLOOD SCIENCES,THERMOFISHER DIAGNOSTICS LTD,3066340,"1,099.20"
NHS,UHCW NHS TRUST,29/03/2022,LABORATORY EQUIP - PURCHASES,BLOOD SCIENCES,THERMOFISHER DIAGNOSTICS LTD,3066340,659.52
NHS,UHCW NHS TRUST,29/03/2022,LABORATORY EQUIP - PURCHASES,BLOOD SCIENCES,THERMOFISHER DIAGNOSTICS LTD,3066340,219.84
NHS,UHCW NHS TRUST,29/03/2022,LABORATORY EQUIP - PURCHASES,BLOOD SCIENCES,THERMOFISHER DIAGNOSTICS LTD,3066340,879.36
NHS,UHCW NHS TRUST,29/03/2022,LABORATORY EQUIP - PURCHASES,BLOOD SCIENCES,THERMOFISHER DIAGNOSTICS LTD,3066340,219.84
NHS,UHCW NHS TRUST,29/03/2022,LABORATORY EQUIP - PURCHASES,BLOOD SCIENCES,THERMOFISHER DIAGNOSTICS LTD,3066340,274.8
NHS,UHCW NHS TRUST,29/03/2022,LABORATORY EQUIP - PURCHASES,BLOOD SCIENCES,THERMOFISHER DIAGNOSTICS LTD,3066340,"11,725.98"
NHS,UHCW NHS TRUST,29/03/2022,CAPITAL EXPENDITURE IN YEAR,CAPITAL,ZIMMER BIOMET UK LIMITED,3067401,"33,192.24"
NHS,UHCW NHS TRUST,29/03/2022,CAPITAL EXPENDITURE IN YEAR,CAPITAL,ZIMMER BIOMET UK LIMITED,3067401,939.36
NHS,UHCW NHS TRUST,29/03/2022,CAPITAL EXPENDITURE IN YEAR,CAPITAL,ZIMMER BIOMET UK LIMITED,3067401,939.36
NHS,UHCW NHS TRUST,29/03/2022,CAPITAL EXPENDITURE IN YEAR,CAPITAL,ZIMMER BIOMET UK LIMITED,3067401,"1,317.84"
NHS,UHCW NHS TRUST,29/03/2022,CAPITAL EXPENDITURE IN YEAR,CAPITAL,ZIMMER BIOMET UK LIMITED,3067401,"7,398.60"
NHS,UHCW NHS TRUST,29/03/2022,MEDICAL & SURGICAL EQUIP PURCH,OBSTETRICS AND GYNAECOLOGY,WELCH ALLYN UK LTD,3068024,"23,503.09"
NHS,UHCW NHS TRUST,29/03/2022,MEDICAL & SURGICAL EQUIP PURCH,OBSTETRICS AND GYNAECOLOGY,WELCH ALLYN UK LTD,3068024,"2,752.36"
NHS,UHCW NHS TRUST,29/03/2022,MEDICAL & SURGICAL EQUIP PURCH,OBSTETRICS AND GYNAECOLOGY,WELCH ALLYN UK LTD,3068024,280.69
NHS,UHCW NHS TRUST,29/03/2022,MEDICAL & SURGICAL EQUIP PURCH,OBSTETRICS AND GYNAECOLOGY,WELCH ALLYN UK LTD,3068024,"4,201.42"
NHS,UHCW NHS TRUST,29/03/2022,CAPITAL EXPENDITURE IN YEAR,CAPITAL,BELMONT MEDICAL TECHNOLOGIES,3068235,"30,909.60"
NHS,UHCW NHS TRUST,29/03/2022,CAPITAL EXPENDITURE IN YEAR,CAPITAL,BELMONT MEDICAL TECHNOLOGIES,3068235,"1,236.00"
NHS,UHCW NHS TRUST,29/03/2022,CAPITAL EXPENDITURE IN YEAR,CAPITAL,BELMONT MEDICAL TECHNOLOGIES,3068235,717.6
NHS,UHCW NHS TRUST,29/03/2022,CAPITAL EXPENDITURE IN YEAR,CAPITAL,BELMONT MEDICAL TECHNOLOGIES,3068235,156
NHS,UHCW NHS TRUST,29/03/2022,MEDICAL & SURGICAL EQUIP PURCH,ITU,STAMFORD PRODUCTS LTD,3068549,"18,437.92"
NHS,UHCW NHS TRUST,29/03/2022,MEDICAL & SURGICAL EQUIP PURCH,ITU,STAMFORD PRODUCTS LTD,3068549,"16,960.10"
NHS,UHCW NHS TRUST,29/03/2022,MEDICAL & SURGICAL EQUIP PURCH,ITU,STAMFORD PRODUCTS LTD,3068549,"3,785.94"
NHS,UHCW NHS TRUST,29/03/2022,MEDICAL & SURGICAL EQUIP PURCH,ITU,STAMFORD PRODUCTS LTD,3068549,"21,873.84"
NHS,UHCW NHS TRUST,29/03/2022,MEDICAL & SURGICAL EQUIP PURCH,ITU,STAMFORD PRODUCTS LTD,3068549,"2,360.47"
NHS,UHCW NHS TRUST,29/03/2022,MEDICAL & SURGICAL EQUIP PURCH,ITU,STAMFORD PRODUCTS LTD,3068549,"4,772.00"
NHS,UHCW NHS TRUST,29/03/2022,MEDICAL & SURGICAL EQUIP PURCH,ITU,STAMFORD PRODUCTS LTD,3068549,"5,842.69"
NHS,UHCW NHS TRUST,29/03/2022,MEDICAL & SURGICAL EQUIP PURCH,ITU,STAMFORD PRODUCTS LTD,3068549,"1,276.87"
NHS,UHCW NHS TRUST,29/03/2022,FURNITURE OFFICE & COMP EQUIP,PATHOLOGY MANAGEMENT,SIEMENS HEALTHCARE DIAGNOSTICS LTD,3069839,"332,462.40"
NHS,UHCW NHS TRUST,29/03/2022,FURNITURE OFFICE & COMP EQUIP,PATHOLOGY MANAGEMENT,SIEMENS HEALTHCARE DIAGNOSTICS LTD,3069840,"243,648.00"
NHS,UHCW NHS TRUST,29/03/2022,FURNITURE OFFICE & COMP EQUIP,PATHOLOGY MANAGEMENT,SIEMENS HEALTHCARE DIAGNOSTICS LTD,3069841,"861,420.82"
NHS,UHCW NHS TRUST,30/03/2022,CAPITAL EXPENDITURE IN YEAR,CAPITAL,ECHO ORTHOPAEDICS LIMITED,2407760,"30,792.96"
NHS,UHCW NHS TRUST,30/03/2022,FURNITURE OFFICE & COMP EQUIP,CORPORATE FINANCE,BESTOUTCOME LIMITED,2407885,"411,480.00"
NHS,UHCW NHS TRUST,30/03/2022,CAPITAL EXPENDITURE IN YEAR,CAPITAL,B BRAUN AVITUM UK LTD,2407916,"27,600.00"
NHS,UHCW NHS TRUST,30/03/2022,CAPITAL EXPENDITURE IN YEAR,CAPITAL,B BRAUN AVITUM UK LTD,2407916,"1,500.00"
NHS,UHCW NHS TRUST,30/03/2022,CAPITAL EXPENDITURE IN YEAR,CAPITAL,HAAG-STREIT UK LTD,2407930,"26,494.80"
NHS,UHCW NHS TRUST,30/03/2022,CAPITAL EXPENDITURE IN YEAR,CAPITAL,HAAG-STREIT UK LTD,2407930,"2,100.00"
NHS,UHCW NHS TRUST,30/03/2022,CAPITAL EXPENDITURE IN YEAR,CAPITAL,HAAG-STREIT UK LTD,2407930,"2,100.00"
NHS,UHCW NHS TRUST,30/03/2022,CAPITAL EXPENDITURE IN YEAR,CAPITAL,SPECIALIST COMPUTER CENTRES LT,2864651,"237,333.60"
NHS,UHCW NHS TRUST,30/03/2022,CAPITAL EXPENDITURE IN YEAR,CAPITAL,SPECIALIST COMPUTER CENTRES LT,2864651,"86,666.40"
NHS,UHCW NHS TRUST,30/03/2022,CAPITAL EXPENDITURE IN YEAR,CAPITAL,SPECIALIST COMPUTER CENTRES LT,2864651,"39,333.60"
NHS,UHCW NHS TRUST,30/03/2022,CAPITAL EXPENDITURE IN YEAR,CAPITAL,SPECIALIST COMPUTER CENTRES LT,2864651,"41,600.40"
NHS,UHCW NHS TRUST,30/03/2022,CAPITAL EXPENDITURE IN YEAR,CAPITAL,LEICA MICROSYSTEMS (UK) LTD,2890120,"3,729.60"
NHS,UHCW NHS TRUST,30/03/2022,CAPITAL EXPENDITURE IN YEAR,CAPITAL,LEICA MICROSYSTEMS (UK) LTD,2890120,"202,800.00"
NHS,UHCW NHS TRUST,30/03/2022,CAPITAL EXPENDITURE IN YEAR,CAPITAL,LEICA MICROSYSTEMS (UK) LTD,2890120,"12,906.10"
NHS,UHCW NHS TRUST,30/03/2022,CAPITAL EXPENDITURE IN YEAR,CAPITAL,LEICA MICROSYSTEMS (UK) LTD,2890120,"3,914.40"
NHS,UHCW NHS TRUST,30/03/2022,CAPITAL EXPENDITURE IN YEAR,CAPITAL,LEICA MICROSYSTEMS (UK) LTD,2890120,"15,159.60"
NHS,UHCW NHS TRUST,30/03/2022,CAPITAL EXPENDITURE IN YEAR,CAPITAL,LEICA MICROSYSTEMS (UK) LTD,2890120,"3,697.20"
NHS,UHCW NHS TRUST,30/03/2022,CAPITAL EXPENDITURE IN YEAR,CAPITAL,LEICA MICROSYSTEMS (UK) LTD,2890120,"4,233.60"
NHS,UHCW NHS TRUST,30/03/2022,CAPITAL EXPENDITURE IN YEAR,CAPITAL,LEICA MICROSYSTEMS (UK) LTD,2890120,"101,438.93"
NHS,UHCW NHS TRUST,30/03/2022,CAPITAL EXPENDITURE IN YEAR,CAPITAL,LEICA MICROSYSTEMS (UK) LTD,2890120,"6,227.23"
NHS,UHCW NHS TRUST,30/03/2022,CAPITAL EXPENDITURE IN YEAR,CAPITAL,LEICA MICROSYSTEMS (UK) LTD,2890120,"3,592.46"
NHS,UHCW NHS TRUST,30/03/2022,CAPITAL EXPENDITURE IN YEAR,CAPITAL,LEICA MICROSYSTEMS (UK) LTD,2890120,678.44
NHS,UHCW NHS TRUST,30/03/2022,RENTS & RATES,RADIOLOGY,INHEALTH LTD,2913858,"28,890.00"
NHS,UHCW NHS TRUST,30/03/2022,SERVICES REC FROM THIRD PARTY,RENAL DIALYSIS,NXSTAGE MEDICAL UK LTD,3047565,"46,844.05"
NHS,UHCW NHS TRUST,30/03/2022,SERVICES REC FROM THIRD PARTY,RENAL DIALYSIS,NXSTAGE MEDICAL UK LTD,3056629,"34,017.58"
NHS,UHCW NHS TRUST,30/03/2022,CAPITAL EXPENDITURE IN YEAR,CAPITAL,INSIGHT DIRECT (UK) LTD,3057204,"154,224.00"
NHS,UHCW NHS TRUST,30/03/2022, OPERATING LEASES,RUGBY MEDICAL SERVICES,QUADIENT UK LTD,3062128,"25,065.86"
NHS,UHCW NHS TRUST,30/03/2022,FURNITURE OFFICE & COMP EQUIP,INFORMATION AND COMMS TECH,DH OPCO UK LTD ( FORMALLY CSC COMPUTER S,3066708,"206,035.20"
NHS,UHCW NHS TRUST,30/03/2022,MEDICAL & SURGICAL EQUIP PURCH,THEATRES,R&D SURGICAL,3068153,"7,907.15"
NHS,UHCW NHS TRUST,30/03/2022,MEDICAL & SURGICAL EQUIP PURCH,THEATRES,R&D SURGICAL,3068153,"8,212.54"
NHS,UHCW NHS TRUST,30/03/2022,MEDICAL & SURGICAL EQUIP PURCH,THEATRES,R&D SURGICAL,3068153,"8,212.54"
NHS,UHCW NHS TRUST,30/03/2022,MEDICAL & SURGICAL EQUIP PURCH,THEATRES,R&D SURGICAL,3068153,"8,212.54"
NHS,UHCW NHS TRUST,30/03/2022,MEDICAL & SURGICAL EQUIP PURCH,THEATRES,R&D SURGICAL,3068153,"2,688.16"
NHS,UHCW NHS TRUST,30/03/2022,MEDICAL & SURGICAL EQUIP PURCH,THEATRES,R&D SURGICAL,3068153,"8,069.08"
NHS,UHCW NHS TRUST,30/03/2022,MEDICAL & SURGICAL EQUIP PURCH,THEATRES,R&D SURGICAL,3068153,"8,295.80"
NHS,UHCW NHS TRUST,30/03/2022,MEDICAL & SURGICAL EQUIP PURCH,THEATRES,R&D SURGICAL,3068153,"3,669.04"
NHS,UHCW NHS TRUST,30/03/2022,MEDICAL & SURGICAL EQUIP PURCH,THEATRES,R&D SURGICAL,3068153,"2,803.82"
NHS,UHCW NHS TRUST,30/03/2022,MEDICAL & SURGICAL EQUIP PURCH,THEATRES,R&D SURGICAL,3068153,"2,603.33"
NHS,UHCW NHS TRUST,30/03/2022,MEDICAL & SURGICAL EQUIP PURCH,THEATRES,R&D SURGICAL,3068153,"2,287.16"
NHS,UHCW NHS TRUST,30/03/2022,CAPITAL EXPENDITURE IN YEAR,CAPITAL,KARL STORZ ENDOSCOPY UK LTD,3069045,"17,666.47"
NHS,UHCW NHS TRUST,30/03/2022,CAPITAL EXPENDITURE IN YEAR,CAPITAL,KARL STORZ ENDOSCOPY UK LTD,3069045,"1,577.89"
NHS,UHCW NHS TRUST,30/03/2022,CAPITAL EXPENDITURE IN YEAR,CAPITAL,KARL STORZ ENDOSCOPY UK LTD,3069045,"5,444.54"
NHS,UHCW NHS TRUST,30/03/2022,CAPITAL EXPENDITURE IN YEAR,CAPITAL,KARL STORZ ENDOSCOPY UK LTD,3069045,"1,209.15"
NHS,UHCW NHS TRUST,30/03/2022,CAPITAL EXPENDITURE IN YEAR,CAPITAL,KARL STORZ ENDOSCOPY UK LTD,3069046,"17,577.08"
NHS,UHCW NHS TRUST,30/03/2022,CAPITAL EXPENDITURE IN YEAR,CAPITAL,KARL STORZ ENDOSCOPY UK LTD,3069046,"6,084.36"
NHS,UHCW NHS TRUST,30/03/2022,CAPITAL EXPENDITURE IN YEAR,CAPITAL,KARL STORZ ENDOSCOPY UK LTD,3069046,634
NHS,UHCW NHS TRUST,30/03/2022,CAPITAL EXPENDITURE IN YEAR,CAPITAL,KARL STORZ ENDOSCOPY UK LTD,3069046,"9,477.90"
NHS,UHCW NHS TRUST,30/03/2022,CAPITAL EXPENDITURE IN YEAR,CAPITAL,KARL STORZ ENDOSCOPY UK LTD,3069046,"1,877.28"
NHS,UHCW NHS TRUST,30/03/2022,LABORATORY EQUIP - PURCHASES,,CEPHEID UK LTD,3069096,"19,140.00"
NHS,UHCW NHS TRUST,30/03/2022,LABORATORY EQUIP - PURCHASES,,CEPHEID UK LTD,3069096,"7,848.00"
NHS,UHCW NHS TRUST,30/03/2022,CAPITAL EXPENDITURE IN YEAR,CAPITAL,XIEL LTD,3069493,"36,005.45"
NHS,UHCW NHS TRUST,30/03/2022,OTHER MISCELLANEOUS,RESEARCH & DEVELOPMENT,COVENTRY UNIVERSITY,3069690,"195,796.14"
NHS,UHCW NHS TRUST,30/03/2022,OTHER MISCELLANEOUS,RESEARCH & DEVELOPMENT,COVENTRY UNIVERSITY,3069692,"168,175.66"
NHS,UHCW NHS TRUST,30/03/2022,CAPITAL EXPENDITURE IN YEAR,CAPITAL,INSIGHT DIRECT (UK) LTD,3069868,"525,272.64"
NHS,UHCW NHS TRUST,30/03/2022,CAPITAL EXPENDITURE IN YEAR,CAPITAL,GHX UK LTD,3069991,"22,500.00"
NHS,UHCW NHS TRUST,30/03/2022,CAPITAL EXPENDITURE IN YEAR,CAPITAL,GHX UK LTD,3069991,"15,420.00"
NHS,UHCW NHS TRUST,30/03/2022,CAPITAL EXPENDITURE IN YEAR,CAPITAL,GHX UK LTD,3069991,"12,000.00"
NHS,UHCW NHS TRUST,30/03/2022,CAPITAL EXPENDITURE IN YEAR,CAPITAL,GHX UK LTD,3069991,"100,800.00"
NHS,UHCW NHS TRUST,30/03/2022,CAPITAL EXPENDITURE IN YEAR,CAPITAL,GHX UK LTD,3069991,"15,000.00"
NHS,UHCW NHS TRUST,30/03/2022,CAPITAL EXPENDITURE IN YEAR,CAPITAL,GHX UK LTD,3069991,"25,800.00"
NHS,UHCW NHS TRUST,30/03/2022,CAPITAL EXPENDITURE IN YEAR,CAPITAL,GHX UK LTD,3069991,"21,120.00"
NHS,UHCW NHS TRUST,30/03/2022,CAPITAL EXPENDITURE IN YEAR,CAPITAL,GHX UK LTD,3069991,"3,000.00"
NHS,UHCW NHS TRUST,30/03/2022,CAPITAL EXPENDITURE IN YEAR,CAPITAL,GHX UK LTD,3069991,"7,200.00"
NHS,UHCW NHS TRUST,30/03/2022,CAPITAL EXPENDITURE IN YEAR,CAPITAL,GHX UK LTD,3069991,"4,200.00"
NHS,UHCW NHS TRUST,30/03/2022,CAPITAL EXPENDITURE IN YEAR,CAPITAL,GHX UK LTD,3069991,"4,200.00"
NHS,UHCW NHS TRUST,30/03/2022,CAPITAL EXPENDITURE IN YEAR,CAPITAL,GHX UK LTD,3069991,"3,600.00"
NHS,UHCW NHS TRUST,30/03/2022,CAPITAL EXPENDITURE IN YEAR,CAPITAL,GHX UK LTD,3069991,"2,160.00"
NHS,UHCW NHS TRUST,30/03/2022,CAPITAL EXPENDITURE IN YEAR,CAPITAL,GHX UK LTD,3069991,"42,000.00"
NHS,UHCW NHS TRUST,30/03/2022,CAPITAL EXPENDITURE IN YEAR,CAPITAL,GHX UK LTD,3069991,"36,000.00"
NHS,UHCW NHS TRUST,30/03/2022,CAPITAL EXPENDITURE IN YEAR,CAPITAL,GHX UK LTD,3069991,"127,968.00"
NHS,UHCW NHS TRUST,31/03/2022,SERVICES REC FROM THIRD PARTY,DERMATOLOGY,HEALTH HARMONIE LTD,2408556,"-25,732.39"
NHS,UHCW NHS TRUST,31/03/2022,SERVICES REC FROM THIRD PARTY,GASTRO / ENDOSCOPY,INHEALTH ENDOSCOPY LTD,2815911,"113,568.00"
NHS,UHCW NHS TRUST,31/03/2022,SERVICES REC FROM THIRD PARTY,GASTRO / ENDOSCOPY,INHEALTH ENDOSCOPY LTD,2815911,"4,752.00"
NHS,UHCW NHS TRUST,31/03/2022,CAPITAL EXPENDITURE IN YEAR,CAPITAL,OMNICELL LIMITED,2815988,"442,065.00"
NHS,UHCW NHS TRUST,31/03/2022,CAPITAL EXPENDITURE IN YEAR,CAPITAL,OMNICELL LIMITED,2815988,"18,000.00"
NHS,UHCW NHS TRUST,31/03/2022,CAPITAL EXPENDITURE IN YEAR,CAPITAL,OMNICELL LIMITED,2815988,"12,000.00"
NHS,UHCW NHS TRUST,31/03/2022,CAPITAL EXPENDITURE IN YEAR,CAPITAL,OMNICELL LIMITED,2815988,"6,000.00"
NHS,UHCW NHS TRUST,31/03/2022,CAPITAL EXPENDITURE IN YEAR,CAPITAL,OMNICELL LIMITED,2815988,"2,160.00"
NHS,UHCW NHS TRUST,31/03/2022,CAPITAL EXPENDITURE IN YEAR,CAPITAL,XOGRAPH HEALTHCARE LTD (UK),2816095,"50,580.00"
NHS,UHCW NHS TRUST,31/03/2022,CAPITAL EXPENDITURE IN YEAR,CAPITAL,XOGRAPH HEALTHCARE LTD (UK),2816095,"36,048.00"
NHS,UHCW NHS TRUST,31/03/2022,CAPITAL EXPENDITURE IN YEAR,CAPITAL,ALCON  EYE CARE (UK) LTD,2816099,"153,264.00"
NHS,UHCW NHS TRUST,31/03/2022,SERVICES REC FROM THIRD PARTY,GASTRO / ENDOSCOPY,INHEALTH ENDOSCOPY LTD,2816217,"30,420.00"
NHS,UHCW NHS TRUST,31/03/2022,SERVICES REC FROM THIRD PARTY,GASTRO / ENDOSCOPY,INHEALTH ENDOSCOPY LTD,2816217,"11,340.00"
NHS,UHCW NHS TRUST,31/03/2022,SERVICES REC FROM THIRD PARTY,GASTRO / ENDOSCOPY,INHEALTH ENDOSCOPY LTD,2816218,"194,880.00"
NHS,UHCW NHS TRUST,31/03/2022,SERVICES REC FROM THIRD PARTY,GASTRO / ENDOSCOPY,INHEALTH ENDOSCOPY LTD,2816219,"194,880.00"
NHS,UHCW NHS TRUST,31/03/2022,CAPITAL EXPENDITURE IN YEAR,CAPITAL,OLYMPUS KEYMED LTD,2890116,"170,339.76"
NHS,UHCW NHS TRUST,31/03/2022,MEDICAL & SURGICAL EQUIP PURCH,THEATRES,KARL STORZ ENDOSCOPY UK LTD,2890137,"4,428.00"
NHS,UHCW NHS TRUST,31/03/2022,MEDICAL & SURGICAL EQUIP PURCH,THEATRES,KARL STORZ ENDOSCOPY UK LTD,2890137,"4,428.00"
NHS,UHCW NHS TRUST,31/03/2022,MEDICAL & SURGICAL EQUIP PURCH,THEATRES,KARL STORZ ENDOSCOPY UK LTD,2890137,"4,428.00"
NHS,UHCW NHS TRUST,31/03/2022,MEDICAL & SURGICAL EQUIP PURCH,THEATRES,KARL STORZ ENDOSCOPY UK LTD,2890137,"4,428.00"
NHS,UHCW NHS TRUST,31/03/2022,MEDICAL & SURGICAL EQUIP PURCH,THEATRES,KARL STORZ ENDOSCOPY UK LTD,2890137,"2,214.00"
NHS,UHCW NHS TRUST,31/03/2022,MEDICAL & SURGICAL EQUIP PURCH,THEATRES,KARL STORZ ENDOSCOPY UK LTD,2890137,666
NHS,UHCW NHS TRUST,31/03/2022,MEDICAL & SURGICAL EQUIP PURCH,THEATRES,KARL STORZ ENDOSCOPY UK LTD,2890137,662.4
NHS,UHCW NHS TRUST,31/03/2022,MEDICAL & SURGICAL EQUIP PURCH,THEATRES,KARL STORZ ENDOSCOPY UK LTD,2890137,885.6
NHS,UHCW NHS TRUST,31/03/2022,MEDICAL & SURGICAL EQUIP PURCH,THEATRES,KARL STORZ ENDOSCOPY UK LTD,2890137,"3,690.00"
NHS,UHCW NHS TRUST,31/03/2022,MEDICAL & SURGICAL EQUIP PURCH,THEATRES,KARL STORZ ENDOSCOPY UK LTD,2890137,"3,006.00"
NHS,UHCW NHS TRUST,31/03/2022,MEDICAL & SURGICAL EQUIP PURCH,THEATRES,KARL STORZ ENDOSCOPY UK LTD,2890137,"3,006.00"
NHS,UHCW NHS TRUST,14/03/2022,TRAINING,Nursing,AMEX PAYMENT,IMM1403222,"34,860.49"
NHS,UHCW NHS TRUST,28/03/2022,POSTAGE,Estates,FRANKING MACHINE,RFM1455319,"40,000.00"
NHS,UHCW NHS TRUST,01/03/2022,OTHER CREDITORS < 1 YR,Balance Sheet,ALLOCATE SOFTWARE LIMITED,RFM1455320,"76,334.81"
NHS,UHCW NHS TRUST,01/03/2022,OTHER CREDITORS < 1 YR,Balance Sheet,ALLOCATE SOFTWARE LIMITED,RFM1455320,"45,853.27"
NHS,UHCW NHS TRUST,08/03/2022,OTHER CREDITORS < 1 YR,Balance Sheet,ALLOCATE SOFTWARE LIMITED,RFM1455376,"117,309.25"
NHS,UHCW NHS TRUST,08/03/2022,OTHER CREDITORS < 1 YR,Balance Sheet,ALLOCATE SOFTWARE LIMITED,RFM1455376,"44,697.09"
NHS,UHCW NHS TRUST,09/03/2022,POSTAGE,Estates,FRANKING MACHINE,RFM1455401,"40,000.00"
NHS,UHCW NHS TRUST,15/03/2022,OTHER CREDITORS < 1 YR,Balance Sheet,ALLOCATE SOFTWARE LIMITED,RFM1455404,"120,444.93"
NHS,UHCW NHS TRUST,15/03/2022,OTHER CREDITORS < 1 YR,Balance Sheet,ALLOCATE SOFTWARE LIMITED,RFM1455404,"37,680.22"
NHS,UHCW NHS TRUST,14/03/2022,OTHER CREDITORS < 1 YR,Balance Sheet,BARCLAYCARD,RFM1455427,"73,133.04"
NHS,UHCW NHS TRUST,22/03/2022,OTHER CREDITORS < 1 YR,Balance Sheet,ALLOCATE SOFTWARE LIMITED,RFM1455430,"71,314.95"
NHS,UHCW NHS TRUST,22/03/2022,OTHER CREDITORS < 1 YR,Balance Sheet,ALLOCATE SOFTWARE LIMITED,RFM1455430,"47,369.59"
NHS,UHCW NHS TRUST,24/03/2022,SERVICES REC FROM THIRD PARTY,Radiology,NON PL INV NOT BUILT ON PL FASTER PAYMENT,RFM1455432,"45,000.00"
NHS,UHCW NHS TRUST,29/03/2022,OTHER CREDITORS < 1 YR,Balance Sheet,ALLOCATE SOFTWARE,RFM1455454,"85,811.65"
NHS,UHCW NHS TRUST,29/03/2022,OTHER CREDITORS < 1 YR,Balance Sheet,ALLOCATE SOFTWARE,RFM1455454,"41,877.69"
